Workbook

Sheet Disclaimer
A2: Welcome to the Water Balance Spreadsheet for the City of Calgary (WBSCC).
A4: The WBSCC tool and associated materials (e.g., User’s Manual) was prepared by Westhoff
A5: Engineering Resources, Inc. (Westhoff) on behalf of The City of Calgary. All copyright
A6: and trademarks on the WBSCC tool and associated materials remain the property of The
A7: City of Calgary.
A9: If you continue to browse and use the WBSCC tool you are agreeing to comply with and
A10: be bound by the following terms and conditions of use:
A12: 1 | B12: Neither The City of Calgary nor Westhoff provide any warranty or guarantee as
B13: to the accuracy, performance, completeness or suitability of the WBSCC tool and
B14: associated materials for any particular purpose. You acknowledge that the WBSCC
B15: tool and associated materials may contain inaccuracies or errors and The City
B16: of Calgary and Westhoff exclude liability for any such inaccuracies or errors.
A18: 2 | B18: Your use of the WBSCC tool and associated materials is entirely at your own risk,
B19: for which The City of Calgary and Westhoff shall not be liable. The City of
B20: Calgary and Westhoff are not responsible for any liability for any direct,
B21: indirect, incidental, consequential or other damages resulting from the use,
B22: misuse or misinterpretation of the WBSCC tool and associated materials.
A24: 3 | B24: It shall be the user’s responsibility to ensure that the WBSCC tool and
B25: associated materials meet your specific requirements. The user shall ensure
B26: that the analysis and design, and subsequent performance of project sites meet
B27: all relevant watershed targets, standards and guidelines. Consult a professional
B28: engineer before utilizing the WBSCC tool and associated materials.
A30: 4 | B30: Every reasonable effort has been made to have the WBSCC tool run smoothly on
B31: typical hardware. However, neither The City of Calgary nor Westhoff take any
B32: responsibility for, and will not be liable for, the WBSCC tool not being able
B33: to be applied due to technical issues beyond our control.
A35: Please advise The City of Calgary of any issues that arise out of the use of the WBSCC tool
A36: and associated materials. The WBSCC tool and associated materials are subject to change
A37: without notice. Updates of the WBSCC tool will be posted on The City of Calgary’s website.

Sheet INTRO
B2: ORGANIZATION OF WORKSHEETS IN WBSCC | C2: Information Worksheets | D2: INTRO Sheet
D3: The INTRO worksheet provides general information about various worksheets in WBSCC.
D5: System Data (SD) Sheet
D6: The System Data worksheet (SD) contains the general information of site, tabulated data sets for the sub-catchments and the storm ponds, crop profiles for selected cover types, as well as the irrigation schedules. This worksheet also contains information such as runoff allocation from various cover types within each sub-catchment as well as discharge routing information between storm ponds. User needs to enter the system data through this worksheet.
D8: Climate Data (CD) Sheet
D9: The Climate Data worksheet (CD) contains time series of daily precipitation, mean daily temperature, and monthly potential evaporation/evapo-transpiration data. Tables to convert the potential evaporation/evapo-transpiration data to the actual watershed conditions are also provided in this worksheet.
C11: Computation Worksheets | D11: The internal computational results are presented for various sub-basins and ponds. These results are in the form of daily time series, over the computational time domain.
D13: Sub-Catchment Computation (SC1, SC2, SC3, SC4, SC5, PB1 and PB2) Sheets
D14: Worksheets SC1 through SC5 show the computational details of sub-catchments 1 through 5. In each worksheet, variables involved in the water balance computation with respect to each cover type as well as the storage/ Re-use tank are provided in the form of daily time series. An annual summary table, highlighting the statistics of pertinent variables is also provided.
D16: Worksheets PB1 and PB2 show the water balance computation involved with the non-submerged pond bed areas of Pond1 and Pond2, respectively. These areas are assumed to be of pervious surface cover type, and the runoffs developed from these areas are allocated to the respective ponds.
D18: Ponds Computation (POND) Sheet
D19: Variables in the water balance computation of Pond 1 and Pond 2 are provided in the Worksheet POND. The worksheet also contains additional variables used in the predictor-corrector computation of pond capacity, surface area and stage. An annual summary table, highlighting the statistics of pertinent variables is also provided.
A32: Results Worksheets | B32: Sub-Catchment Statistics
B33: Worksheets DS1 through DS5 show the summary statistics as well as the aggregated results of variables involved for each sub-catchment.
B35: Pond Statistics
B36: Worksheet PSTAT shows the summary statistics as well as the aggregated results of variables involved in the water balance computation of ponds.
B38: Chart Dialog User Interface
B39: A user-customizable dialog is provided to create charts based on the available time series, and to append them to the Workbook.

Sheet SD
J1: WBSCC - PROJECT DATA SHEET - Environmental Information | P1: WBSCC - PROJECT DATA SHEET - Environmental Information (Cont'd.)
J3: Minimum Temperature to Trigger Runoff (oC) | M3: 0 | P3: Actual to Potential Evapotranspiration Modification Factors
J4: Sublimation Losses (%) | M4: 0
J5: Precipitation Multiplication Factor (% Decrease) | M5: 0 | P5: Sand | R5: Silt | T5: Clay | V5: Customized Media
P6: AW/AWC | Q6: F | R6: AW/AWC | S6: F | T6: AW/AWC | U6: F | V6: AW/AWC | W6: F
P7: 0 | Q7: 0 | R7: 0 | S7: 0 | T7: 0 | U7: 0 | V7: 0 | W7: 0
J8: Month | K8: Is Winter | L8: Crop Water Requirement (mm/month) | P8: 0.2 | Q8: 1 | R8: 0.2 | S8: 0.1 | T8: 0.2 | U8: 0.05 | V8: 0.2 | W8: 0.1
K9: or Summer? | L9: KENTUCKY BLUE GRASS | M9: SAGE BRUSH | N9: Unnamed 1 | O9: Unnamed 2 | P9: 0.4 | Q9: 1 | R9: 0.4 | S9: 0.8 | T9: 0.4 | U9: 0.3 | V9: 0.4 | W9: 0.5
J10: January | K10: Winter | L10: 0 | M10: 0 | N10: 0 | O10: 0 | P10: 0.6 | Q10: 1 | R10: 0.6 | S10: 1 | T10: 0.6 | U10: 0.6 | V10: 0.6 | W10: 0.7
J11: February | K11: Winter | L11: 0 | M11: 0 | N11: 0 | O11: 0 | P11: 0.8 | Q11: 1 | R11: 0.8 | S11: 1 | T11: 0.8 | U11: 0.95 | V11: 0.8 | W11: 0.9
J12: March | K12: Winter | L12: 0 | M12: 0 | N12: 0 | O12: 0 | P12: 1 | Q12: 1 | R12: 1 | S12: 1 | T12: 1 | U12: 1 | V12: 1 | W12: 1
J13: April | K13: Summer | L13: 0 | M13: 0 | N13: 0 | O13: 0 | P13: 50 | Q13: 1 | R13: 50 | S13: 1 | T13: 50 | U13: 1 | V13: 50 | W13: 1
A14: PROJECT SUMMARY SHEET | J14: May | K14: Summer | L14: 110 | M14: 50 | N14: 0 | O14: 0 | P14: 100 | Q14: 1 | R14: 100 | S14: 1 | T14: 100 | U14: 1 | V14: 100 | W14: 1
J15: June | K15: Summer | L15: 110 | M15: 50 | N15: 0 | O15: 0
A16: Project Name: | J16: July | K16: Summer | L16: 110 | M16: 60 | N16: 0 | O16: 0 | P16: AW: Available Water Content (mm)
J17: August | K17: Summer | L17: 110 | M17: 50 | N17: 0 | O17: 0 | P17: AWC: Available Water Capacity (mm)
A18: Project Description: | J18: September | K18: Summer | L18: 110 | M18: 50 | N18: 0 | O18: 0
J19: October | K19: Summer | L19: 0 | M19: 20 | N19: 0 | O19: 0
J20: November | K20: Winter | L20: 0 | M20: 0 | N20: 0 | O20: 0
J21: December | K21: Winter | L21: 0 | M21: 0 | N21: 0 | O21: 0
J25: Catchment Area Data
A27: Location: | J27: Sub-Catchment | K27: Description of Sub-catchment Use | N27: Area (ha)
J28: Sub-Catchment 1
A29: Date: | J29: Sub-Catchment 2
J30: Sub-Catchment 3
A31: Designed by: | J31: Sub-Catchment 4
J32: Sub-Catchment 5
A33: Company Name: | J33: Total | N33: =SUM(N28:N32) -> 0
A35: Reviewed by: | J35: Pond Area Data
J37: Pond | K37: Description of Pond | N37: Pond Area (m2)
J38: Pond 1 | N38: =MAX(F240:F260) -> 0
J39: Pond 2 | N39: =MAX(F279:F299) -> 0
A41: WBSCC - PROJECT DATA SHEET - Sub-Catchment 1: Parameters, Runoff Allocation | J41: WBSCC - PROJECT DATA SHEET - Sub-Catchment 1: Crops, Irrigation, Storage/Reuse Tank | P41: WBSCC - PROJECT DATA SHEET - Sub-Catchment 1: Weekly Watering Schedule
A42: ="Usage: " & $K$28 -> Usage:
A43: Sub-catchment Parameters | C43: Cover Type | J43: Storage/ Reuse Tank Parameters | M43: Values | P43: Weekly Watering Schedule #1 (Depth of Irrigation) (mm)
C44: Impervious | D44: Pervious | E44: Absorbent | F44: Green Roof | G44: Bioretention/ | H44: Unassigned
C45: Surface | D45: Surface | E45: Landscaping | F45: Media | G45: Bioswale | H45: Area | J45: Tank Water Surface Area (assumed bath tub) | L45: (m2) | Q45: Sun | R45: Mon | S45: Tue | T45: Wed | U45: Thu | V45: Fri | W45: Sat
G46: Medium | J46: Spill Crest Elevation, above Tank Floor | L46: (m) | P46: Jan
A47: ="Area (Total: " &N28 & ")" -> Area (Total: ) | B47: (ha) | C47: 0 | D47: 0 | E47: 0 | F47: 0 | G47: 0 | H47: =N28-SUM(C47:G47) -> 0 | J47: Starting Water Level | L47: (m) | P47: Feb
A48: Depression Loss | B48: (mm) | C48: 1.6 | J48: Minimum Tank Water Elevation for Recharge | L48: (m) | P48: Mar
A49: Soil Type: Sand | F49: 100 | G49: 90 | J49: Maximum Tank Water Elevation for Recharge | L49: (m) | P49: Apr
A50: Silt | D50: 100 | E50: 100 | F50: 0 | G50: 10 | J50: Use Recharge from Storm Ponds | M50: No | N50: =IF(M50="Yes",IF(M51="POND #1",1,0),0) -> 0 | O50: =IF(M50="Yes",IF(M51="POND #2",1,0),0) -> 0 | P50: May | V50: 10
A51: Clay | J51: Recharge Source | M51: POND #1 | N51: =IF(AND($M50="Yes",$M51="POND #1",N50>1),"POND #1 ALREADY SELECTED","") ->  | O51: =IF(AND($M50="Yes",$M51="POND #2",O50>1),"POND #1 ALREADY SELECTED","") ->  | P51: Jun | S51: 10 | V51: 15
A52: Custom | J52: Additional Non-Potable Demand | L52: (l/s) | M52: 0 | P52: Jul | R52: 10 | T52: 10 | V52: 15
A53: Unassigned | D53: =100 - SUM(D49:D52) -> 0 | E53: =100 - SUM(E49:E52) -> 0 | F53: =100 - SUM(F49:F52) -> 0 | G53: =100 - SUM(G49:G52) -> 0 | J53: Municipal Supply Available | M53: No | P53: Aug | R53: 10 | T53: 10 | V53: 15
A54: Soil or Media Depth | B54: (mm) | D54: 100 | E54: 300 | F54: 200 | G54: 600 | P54: Sep | S54: 10 | V54: 15
A55: Porosity | D55: 0.46 | E55: 0.46 | F55: 0.512 | G55: 0.469 | P55: Oct
A56: Field Capacity | D56: 0.271 | E56: 0.271 | F56: 0.132 | G56: 0.092 | J56: Ground Cover Crop-Mix Profiles (Mix as %) | P56: Nov
A57: Wilting Point | D57: 0.126 | E57: 0.126 | F57: 0.057 | G57: 0.038 | P57: Dec
A58: Saturated Hydraulic Conductivity | B58: (m/s) | D58: 5e-06 | E58: 5e-06 | F58: 2.5e-05 | G58: 3.5e-05 | J58: Crops | L58: Profile #1 | M58: Profile #2 | N58: Profile #3
A59: Sub-soil Hydraulic Conductivity | B59: (m/s) | D59: 1e-08 | E59: 1e-08 | G59: 5e-08 | J59: =$L$9 -> KENTUCKY BLUE GRASS | L59: 90 | M59: 100 | N59: 50
A60: Ponding Depth | B60: (mm) | D60: 0 | E60: 0 | F60: 0 | G60: 300 | J60: =+$M$9 -> SAGE BRUSH | L60: 10 | M60: 0 | N60: 50 | P60: Weekly Watering Schedule #2 (Depth of Irrigation) (mm)
A61: Inv. Slope of Log. Tension Moisture Curve | D61: =(LN(1500)-LN(33))/(LN(D56)-LN(D57)) -> 4.983714883 | E61: =(LN(1500)-LN(33))/(LN(E56)-LN(E57)) -> 4.983714883 | F61: =(LN(1500)-LN(33))/(LN(F56)-LN(F57)) -> 4.545054897 | G61: =(LN(1500)-LN(33))/(LN(G56)-LN(G57)) -> 4.316560044 | J61: =$N$9 -> Unnamed 1 | L61: 0 | M61: 0 | N61: 0
A62: Subdrain Invert (above bottom of media) | B62: (mm) | G62: 0 | J62: =$O$9 -> Unnamed 2 | L62: 0 | M62: 0 | N62: 0 | Q62: Sun | R62: Mon | S62: Tue | T62: Wed | U62: Thu | V62: Fri | W62: Sat
A63: Subdrain Capacity | B63: (m3/s) | G63: 0 | J63: Unassigned | L63: =100-SUM(L59:L62) -> 0 | M63: =100-SUM(M59:M62) -> 0 | N63: =100 - SUM(N59:N62) -> 0 | P63: Jan
P64: Feb
P65: Mar
A66: % of Runoff Allocated To: | C66: Runoff Allocated from Cover Type/ Facility: | J66: Irrigation Crop Profile or Scheduling Assignment: | P66: Apr
C67: Impervious | D67: Pervious | E67: Absorbent | F67: Green Roof | G67: Bioretention/ | H67: Storage/ | I67: Discharge | P67: May | W67: 30
C68: Surface | D68: Surface | E68: Landscaping | F68: Media | G68: Bioswale | H68: Reuse | J68: Pervious Surface Cover Type | P68: Jun | W68: 30
G69: Media | H69: Tank | J69: Use Irrigation Schedule | K69: No | L69: Schedule Number | M69: 1 | N69: =IF(AND(K69="Yes",K70="Yes"), "Use Either Irrigation Schedule or Crop Profile", "") ->  | P69: Jul | W69: 30
A70: Pervious Surface | C70: 0 | F70: 0 | J70: Use Crop Demand Profile | K70: No | L70: Profile Number | M70: 1 | P70: Aug | W70: 30
A71: Absorbent Landscaping | C71: 0 | D71: 0 | F71: 0 | J71: Absorbent Landscaping Cover Type | P71: Sep | W71: 30
A72: Green Roof Media | C72: 0 | J72: Use Irrigation Schedule | K72: No | L72: Schedule Number | M72: 1 | N72: =IF(AND(K72="Yes",K73="Yes"), "Use Either Irrigation Schedule or Crop Profile", "") ->  | P72: Oct
A73: Storage/ Reuse Tank | C73: 0 | D73: 0 | E73: 0 | F73: 0 | J73: Use Crop Demand Profile | K73: No | L73: Profile Number | M73: 1 | P73: Nov
A74: Bioretention/Bioswale Media | C74: 0 | D74: 0 | E74: 0 | F74: 0 | J74: Green Roof Media | P74: Dec
A75: Discharge | C75: =100 -SUM(C70:C74) -> 100 | D75: =100 -D71-SUM(D73:D74) -> 100 | E75: =100- SUM(E73:E74) -> 100 | F75: =100 - SUM(F73:F74)-SUM(F70:F71) -> 100 | G75: 100 | H75: 100 | J75: Use Irrigation Schedule | K75: No | L75: Schedule Number | M75: 1 | N75: =IF(AND(K75="Yes",K76="Yes"), "Use Either Irrigation Schedule or Crop Profile", "") -> 
A76: Pond 1/Pond 2 | I76: POND #1 | J76: Use Crop Demand Profile | K76: No | L76: Profile Number | M76: 1
P77: Precipitation treshold (mm) during irrigation day and preceding two days | W77: 10
A80: WBSCC - PROJECT DATA SHEET - Sub-Catchment 2: Parameters, Runoff Allocation | J80: WBSCC - PROJECT DATA SHEET - Sub-Catchment 2: Crops, Irrigation, Storage/Reuse Tank | P80: WBSCC - PROJECT DATA SHEET - Sub-Catchment 2: Weekly Watering Schedule
A81: ="Usage: " & $K$29 -> Usage:
A82: Sub-catchment Parameters | C82: Cover Type | J82: Storage/ Reuse Tank Parameters | M82: Values | P82: Weekly Watering Schedule #1 (Depth of Irrigation) (mm)
C83: Impervious | D83: Pervious | E83: Absorbent | F83: Green Roof | G83: Bioretention/ | H83: Unassigned
C84: Surface | D84: Surface | E84: Landscaping | F84: Media | G84: Bioswale | H84: Area | J84: Tank Water Surface Area (assumed bath tub) | L84: (m2) | Q84: Sun | R84: Mon | S84: Tue | T84: Wed | U84: Thu | V84: Fri | W84: Sat
G85: Medium | J85: Spill Crest Elevation, above Tank Floor | L85: (m) | P85: Jan
A86: ="Area (Total: " & N29 & ")" -> Area (Total: ) | B86: (ha) | C86: 0 | D86: 0 | E86: 0 | F86: 0 | G86: 0 | H86: =N29-SUM(C86:G86) -> 0 | J86: Starting Water Level | L86: (m) | P86: Feb
A87: Depression Loss | B87: (mm) | C87: 1.6 | J87: Minimum Tank Water Elevation for Recharge | L87: (m) | P87: Mar
A88: Soil Type: Sand | F88: 100 | G88: 90 | J88: Maximum Tank Water Elevation for Recharge | L88: (m) | P88: Apr
A89: Silt | D89: 100 | E89: 100 | F89: 0 | G89: 10 | J89: Use Recharge from Storm Ponds | M89: No | N89: =IF($M89="Yes",IF($M90="POND #1",N50+1,N50),N50) -> 0 | O89: =IF($M89="Yes",IF($M90="POND #2",O50+1,O50),O50) -> 0 | P89: May | V89: 10
A90: Clay | J90: Recharge Source | M90: POND #1 | N90: =IF(AND($M89="Yes",$M90="POND #1",N89>1),"POND #1 ALREADY SELECTED","") ->  | P90: Jun | S90: 10 | V90: 15
A91: Custom | J91: Additional Non-Potable Demand | L91: (l/s) | M91: 0 | N91: =IF(AND($M89="Yes",$M90="POND #2",O89>1),"POND #2 ALREADY SELECTED","") ->  | P91: Jul | R91: 10 | T91: 10 | V91: 15
A92: Unassigned | D92: =100 - SUM(D88:D91) -> 0 | E92: =100 - SUM(E88:E91) -> 0 | F92: =100 - SUM(F88:F91) -> 0 | G92: =100 - SUM(G88:G91) -> 0 | J92: Municipal Supply Available | M92: No | P92: Aug | R92: 10 | T92: 10 | V92: 15
A93: Soil or Media Depth | B93: (mm) | D93: 100 | E93: 300 | F93: 200 | G93: 600 | P93: Sep | S93: 10 | V93: 15
A94: Porosity | D94: 0.46 | E94: 0.46 | F94: 0.512 | G94: 0.469 | P94: Oct
A95: Field Capacity | D95: 0.271 | E95: 0.271 | F95: 0.132 | G95: 0.092 | J95: Ground Cover Crop-Mix Profiles (Mix as %) | P95: Nov
A96: Wilting Point | D96: 0.126 | E96: 0.126 | F96: 0.057 | G96: 0.038 | P96: Dec
A97: Saturated Hydraulic Conductivity | B97: (m/s) | D97: 5e-06 | E97: 5e-06 | F97: 2.5e-05 | G97: 3.5e-05 | J97: Crops | L97: Profile #1 | M97: Profile #2 | N97: Profile #3
A98: Sub-soil Hydraulic Conductivity | B98: (m/s) | D98: 1e-08 | E98: 1e-08 | G98: 5e-08 | J98: =$L$9 -> KENTUCKY BLUE GRASS | L98: 90 | M98: 100 | N98: 50
A99: Ponding Depth | B99: (mm) | D99: 0 | E99: 0 | F99: 0 | G99: 300 | J99: =+$M$9 -> SAGE BRUSH | L99: 10 | M99: 0 | N99: 50 | P99: Weekly Watering Schedule #2 (Depth of Irrigation) (mm)
A100: Inv. Slope of Log. Tension Moisture Curve | D100: =(LN(1500)-LN(33))/(LN(D95)-LN(D96)) -> 4.983714883 | E100: =(LN(1500)-LN(33))/(LN(E95)-LN(E96)) -> 4.983714883 | F100: =(LN(1500)-LN(33))/(LN(F95)-LN(F96)) -> 4.545054897 | G100: =(LN(1500)-LN(33))/(LN(G95)-LN(G96)) -> 4.316560044 | J100: =$N$9 -> Unnamed 1 | L100: 0 | M100: 0 | N100: 0
A101: Subdrain Invert (above bottom of media) | B101: (mm) | G101: 0 | J101: =$O$9 -> Unnamed 2 | L101: 0 | M101: 0 | N101: 0 | Q101: Sun | R101: Mon | S101: Tue | T101: Wed | U101: Thu | V101: Fri | W101: Sat
A102: Subdrain Capacity | B102: (m3/s) | G102: 0 | J102: Unassigned | L102: =100-SUM(L98:L101) -> 0 | M102: =100-SUM(M98:M101) -> 0 | N102: =100 - SUM(N98:N101) -> 0 | P102: Jan
P103: Feb
P104: Mar
A105: % of Runoff Allocated To: | C105: Runoff Allocated from Cover Type/ Facility: | J105: Irrigation Crop Profile or Scheduling Assignment: | P105: Apr
C106: Impervious | D106: Pervious | E106: Absorbent | F106: Green Roof | G106: Bioretention/ | H106: Storage/ | I106: Discharge | P106: May | W106: 25
C107: Surface | D107: Surface | E107: Landscaping | F107: Media | G107: Bioswale | H107: Reuse | J107: Pervious Surface Cover Type | P107: Jun | W107: 25
G108: Media | H108: Tank | J108: Use Irrigation Schedule | K108: No | L108: Schedule Number | M108: 1 | N108: =IF(AND(K108="Yes",K109="Yes"), "Use Either Irrigation Schedule or Crop Profile", "") ->  | P108: Jul | W108: 25
A109: Pervious Surface | C109: 0 | F109: 0 | J109: Use Crop Demand Profile | K109: No | L109: Profile Number | M109: 1 | P109: Aug | W109: 25
A110: Absorbent Landscaping | C110: 0 | D110: 0 | F110: 0 | J110: Absorbent Landscaping Cover Type | P110: Sep | W110: 25
A111: Green Roof Media | C111: 0 | J111: Use Irrigation Schedule | K111: No | L111: Schedule Number | M111: 1 | N111: =IF(AND(K111="Yes",K112="Yes"), "Use Either Irrigation Schedule or Crop Profile", "") ->  | P111: Oct
A112: Storage/ Reuse Tank | C112: 0 | D112: 0 | E112: 0 | F112: 0 | J112: Use Crop Demand Profile | K112: No | L112: Profile Number | M112: 1 | P112: Nov
A113: Bioretention/Bioswale Media | C113: 0 | D113: 0 | E113: 0 | F113: 0 | J113: Green Roof Media | P113: Dec
A114: Discharge | C114: =100 -SUM(C109:C113) -> 100 | D114: =100 -D110-SUM(D112:D113) -> 100 | E114: =100- SUM(E112:E113) -> 100 | F114: =100 - SUM(F112:F113)-SUM(F109:F110) -> 100 | G114: 100 | H114: 100 | J114: Use Irrigation Schedule | K114: No | L114: Schedule Number | M114: 1 | N114: =IF(AND(K114="Yes",K115="Yes"), "Use Either Irrigation Schedule or Crop Profile", "") -> 
A115: Pond 1/Pond 2 | I115: POND #2 | J115: Use Crop Demand Profile | K115: No | L115: Profile Number | M115: 1
P116: Precipitation treshold (mm) during irrigation day and preceding two days | W116: 10
A119: WBSCC - PROJECT DATA SHEET - Sub-Catchment 3: Parameters, Runoff Allocation | J119: WBSCC - PROJECT DATA SHEET - Sub-Catchment 3: Crops, Irrigation, Storage/Reuse Tank | P119: WBSCC - PROJECT DATA SHEET - Sub-Catchment 3: Weekly Watering Schedule
A120: ="Usage: " & $K$30 -> Usage:
A121: Sub-catchment Parameters | C121: Cover Type | J121: Storage/ Reuse Tank Parameters | M121: Values | P121: Weekly Watering Schedule #1 (Depth of Irrigation) (mm)
C122: Impervious | D122: Pervious | E122: Absorbent | F122: Green Roof | G122: Bioretention/ | H122: Unassigned
C123: Surface | D123: Surface | E123: Landscaping | F123: Media | G123: Bioswale | H123: Area | J123: Tank Water Surface Area (assumed bath tub) | L123: (m2) | Q123: Sun | R123: Mon | S123: Tue | T123: Wed | U123: Thu | V123: Fri | W123: Sat
G124: Medium | J124: Spill Crest Elevation, above Tank Floor | L124: (m) | P124: Jan
A125: ="Area (Total: " & N30 & ")" -> Area (Total: ) | B125: (ha) | C125: 0 | D125: 0 | E125: 0 | F125: 0 | G125: 0 | H125: =N30-SUM(C125:G125) -> 0 | J125: Starting Water Level | L125: (m) | P125: Feb
A126: Depression Loss | B126: (mm) | C126: 1.6 | J126: Minimum Tank Water Elevation for Recharge | L126: (m) | P126: Mar
A127: Soil Type: Sand | F127: 100 | G127: 90 | J127: Maximum Tank Water Elevation for Recharge | L127: (m) | P127: Apr
A128: Silt | D128: 100 | E128: 100 | F128: 0 | G128: 10 | J128: Use Recharge from Storm Ponds | M128: No | N128: =IF($M128="Yes",IF($M129="POND #1",N89+1,N89),N89) -> 0 | O128: =IF($M128="Yes",IF($M129="POND #2",O89+1,O89),O89) -> 0 | P128: May | V128: 10
A129: Clay | J129: Recharge Source | M129: POND #1 | N129: =IF(AND($M128="Yes",$M129="POND #1",N128>1),"POND #1 ALREADY SELECTED","") ->  | P129: Jun | S129: 10 | V129: 15
A130: Custom | J130: Additional Non-Potable Demand | L130: (l/s) | M130: 0 | N130: =IF(AND($M128="Yes",$M129="POND #2",O128>1),"POND #2 ALREADY SELECTED","") ->  | P130: Jul | R130: 10 | T130: 10 | V130: 15
A131: Unassigned | D131: =100 - SUM(D127:D130) -> 0 | E131: =100 - SUM(E127:E130) -> 0 | F131: =100 - SUM(F127:F130) -> 0 | G131: =100 - SUM(G127:G130) -> 0 | J131: Municipal Supply Available | M131: No | P131: Aug | R131: 10 | T131: 10 | V131: 15
A132: Soil or Media Depth | B132: (mm) | D132: 100 | E132: 300 | F132: 200 | G132: 600 | P132: Sep | S132: 10 | V132: 15
A133: Porosity | D133: 0.46 | E133: 0.46 | F133: 0.512 | G133: 0.469 | P133: Oct
A134: Field Capacity | D134: 0.271 | E134: 0.271 | F134: 0.132 | G134: 0.092 | J134: Ground Cover Crop-Mix Profiles (Mix as %) | P134: Nov
A135: Wilting Point | D135: 0.126 | E135: 0.126 | F135: 0.057 | G135: 0.038 | P135: Dec
A136: Saturated Hydraulic Conductivity | B136: (m/s) | D136: 5e-06 | E136: 5e-06 | F136: 2.5e-05 | G136: 3.5e-05 | J136: Crops | L136: Profile #1 | M136: Profile #2 | N136: Profile #3
A137: Sub-soil Hydraulic Conductivity | B137: (m/s) | D137: 1e-08 | E137: 1e-08 | G137: 5e-08 | J137: =$L$9 -> KENTUCKY BLUE GRASS | L137: 90 | M137: 100 | N137: 50
A138: Ponding Depth | B138: (mm) | D138: 0 | E138: 0 | F138: 0 | G138: 300 | J138: =+$M$9 -> SAGE BRUSH | L138: 10 | M138: 0 | N138: 50 | P138: Weekly Watering Schedule #2 (Depth of Irrigation) (mm)
A139: Inv. Slope of Log. Tension Moisture Curve | D139: =(LN(1500)-LN(33))/(LN(D134)-LN(D135)) -> 4.983714883 | E139: =(LN(1500)-LN(33))/(LN(E134)-LN(E135)) -> 4.983714883 | F139: =(LN(1500)-LN(33))/(LN(F134)-LN(F135)) -> 4.545054897 | G139: =(LN(1500)-LN(33))/(LN(G134)-LN(G135)) -> 4.316560044 | J139: =$N$9 -> Unnamed 1 | L139: 0 | M139: 0 | N139: 0
A140: Subdrain Invert (above bottom of media) | B140: (mm) | G140: 0 | J140: =$O$9 -> Unnamed 2 | L140: 0 | M140: 0 | N140: 0 | Q140: Sun | R140: Mon | S140: Tue | T140: Wed | U140: Thu | V140: Fri | W140: Sat
A141: Subdrain Capacity | B141: (m3/s) | G141: 0 | J141: Unassigned | L141: =100-SUM(L137:L140) -> 0 | M141: =100-SUM(M137:M140) -> 0 | N141: =100 - SUM(N137:N140) -> 0 | P141: Jan
P142: Feb
P143: Mar
A144: % of Runoff Allocated To: | C144: Runoff Allocated from Cover Type/ Facility: | J144: Irrigation Crop Profile or Scheduling Assignment: | P144: Apr
C145: Impervious | D145: Pervious | E145: Absorbent | F145: Green Roof | G145: Bioretention/ | H145: Storage/ | I145: Discharge | P145: May | W145: 25
C146: Surface | D146: Surface | E146: Landscaping | F146: Media | G146: Bioswale | H146: Reuse | J146: Pervious Surface Cover Type | P146: Jun | W146: 25
G147: Media | H147: Tank | J147: Use Irrigation Schedule | K147: No | L147: Schedule Number | M147: 1 | N147: =IF(AND(K147="Yes",K148="Yes"), "Use Either Irrigation Schedule or Crop Profile", "") ->  | P147: Jul | W147: 25
A148: Pervious Surface | C148: 0 | F148: 0 | J148: Use Crop Demand Profile | K148: No | L148: Profile Number | M148: 1 | P148: Aug | W148: 25
A149: Absorbent Landscaping | C149: 0 | D149: 0 | F149: 0 | J149: Absorbent Landscaping Cover Type | P149: Sep | W149: 25
A150: Green Roof Media | C150: 0 | J150: Use Irrigation Schedule | K150: No | L150: Schedule Number | M150: 1 | N150: =IF(AND(K150="Yes",K151="Yes"), "Use Either Irrigation Schedule or Crop Profile", "") ->  | P150: Oct
A151: Storage/ Reuse Tank | C151: 0 | D151: 0 | E151: 0 | F151: 0 | J151: Use Crop Demand Profile | K151: No | L151: Profile Number | M151: 1 | P151: Nov
A152: Bioretention/Bioswale Media | C152: 0 | D152: 0 | E152: 0 | F152: 0 | J152: Green Roof Media | P152: Dec
A153: Discharge | C153: =100 -SUM(C148:C152) -> 100 | D153: =100 -D149-SUM(D151:D152) -> 100 | E153: =100- SUM(E151:E152) -> 100 | F153: =100 - SUM(F151:F152)-SUM(F148:F149) -> 100 | G153: 100 | H153: 100 | J153: Use Irrigation Schedule | K153: No | L153: Schedule Number | M153: 1 | N153: =IF(AND(K153="Yes",K154="Yes"), "Use Either Irrigation Schedule or Crop Profile", "") -> 
A154: Pond 1/Pond 2 | I154: POND #2 | J154: Use Crop Demand Profile | K154: No | L154: Profile Number | M154: 1
P155: Precipitation treshold (mm) during irrigation day and preceding two days | W155: 10
A158: WBSCC - PROJECT DATA SHEET - Sub-Catchment 4: Parameters, Runoff Allocation | J158: WBSCC - PROJECT DATA SHEET - Sub-Catchment 4: Crops, Irrigation, Storage/Reuse Tank | P158: WBSCC - PROJECT DATA SHEET - Sub-Catchment 4: Weekly Watering Schedule
A159: ="Usage: " & $K$31 -> Usage:
A160: Sub-catchment Parameters | C160: Cover Type | J160: Storage/ Reuse Tank Parameters | M160: Values | P160: Weekly Watering Schedule #1 (Depth of Irrigation) (mm)
C161: Impervious | D161: Pervious | E161: Absorbent | F161: Green Roof | G161: Bioretention/ | H161: Unassigned
C162: Surface | D162: Surface | E162: Landscaping | F162: Media | G162: Bioswale | H162: Area | J162: Tank Water Surface Area (assumed bath tub) | L162: (m2) | Q162: Sun | R162: Mon | S162: Tue | T162: Wed | U162: Thu | V162: Fri | W162: Sat
G163: Medium | J163: Spill Crest Elevation, above Tank Floor | L163: (m) | P163: Jan
A164: ="Area (Total: " & N69 & ")" -> Area (Total: ) | B164: (ha) | C164: 0 | D164: 0 | E164: 0 | F164: 0 | G164: 0 | H164: =N31-SUM(C164:G164) -> 0 | J164: Starting Water Level | L164: (m) | P164: Feb
A165: Depression Loss | B165: (mm) | C165: 1.6 | J165: Minimum Tank Water Elevation for Recharge | L165: (m) | P165: Mar
A166: Soil Type: Sand | F166: 100 | G166: 90 | J166: Maximum Tank Water Elevation for Recharge | L166: (m) | P166: Apr
A167: Silt | D167: 100 | E167: 100 | F167: 0 | G167: 10 | J167: Use Recharge from Storm Ponds | M167: No | N167: =IF($M167="Yes",IF($M168="POND #1",N128+1,N128),N128) -> 0 | O167: =IF($M167="Yes",IF($M168="POND #2",O128+1,O128),O128) -> 0 | P167: May | V167: 10
A168: Clay | J168: Recharge Source | M168: POND #1 | N168: =IF(AND($M167="Yes",$M168="POND #1",N167>1),"POND #1 ALREADY SELECTED","") ->  | P168: Jun | S168: 10 | V168: 15
A169: Customized Media | J169: Additional Non-Potable Demand | L169: (l/s) | M169: 0 | N169: =IF(AND($M167="Yes",$M168="POND #2",O167>1),"POND #2 ALREADY SELECTED","") ->  | P169: Jul | R169: 10 | T169: 10 | V169: 15
A170: Unassigned | D170: =100 - SUM(D166:D169) -> 0 | E170: =100 - SUM(E166:E169) -> 0 | F170: =100 - SUM(F166:F169) -> 0 | G170: =100 - SUM(G166:G169) -> 0 | J170: Municipal Supply Available | M170: No | P170: Aug | R170: 10 | T170: 10 | V170: 15
A171: Soil or Media Depth | B171: (mm) | D171: 100 | E171: 50 | F171: 200 | G171: 600 | P171: Sep | S171: 10 | V171: 15
A172: Porosity | D172: 0.46 | E172: 0.46 | F172: 0.512 | G172: 0.469 | P172: Oct
A173: Field Capacity | D173: 0.271 | E173: 0.271 | F173: 0.132 | G173: 0.092 | J173: Ground Cover Crop-Mix Profiles (Mix as %) | P173: Nov
A174: Wilting Point | D174: 0.126 | E174: 0.126 | F174: 0.057 | G174: 0.038 | P174: Dec
A175: Saturated Hydraulic Conductivity | B175: (m/s) | D175: 5e-06 | E175: 5e-06 | F175: 2.5e-05 | G175: 3.5e-05 | J175: Crops | L175: Profile #1 | M175: Profile #2 | N175: Profile #3
A176: Sub-soil Hydraulic Conductivity | B176: (m/s) | D176: 1e-08 | E176: 1e-08 | G176: 5e-08 | J176: =$L$9 -> KENTUCKY BLUE GRASS | L176: 90 | M176: 100 | N176: 50
A177: Ponding Depth | B177: (mm) | D177: 0 | E177: 0 | F177: 0 | G177: 300 | J177: =+$M$9 -> SAGE BRUSH | L177: 10 | M177: 0 | N177: 50 | P177: Weekly Watering Schedule #2 (Depth of Irrigation) (mm)
A178: Inv. Slope of Log. Tension Moisture Curve | D178: =(LN(1500)-LN(33))/(LN(D173)-LN(D174)) -> 4.983714883 | E178: =(LN(1500)-LN(33))/(LN(E173)-LN(E174)) -> 4.983714883 | F178: =(LN(1500)-LN(33))/(LN(F173)-LN(F174)) -> 4.545054897 | G178: =(LN(1500)-LN(33))/(LN(G173)-LN(G174)) -> 4.316560044 | J178: =$N$9 -> Unnamed 1 | L178: 0 | M178: 0 | N178: 0
A179: Subdrain Invert (above bottom of media) | B179: (mm) | G179: 0 | J179: =$O$9 -> Unnamed 2 | L179: 0 | M179: 0 | N179: 0 | Q179: Sun | R179: Mon | S179: Tue | T179: Wed | U179: Thu | V179: Fri | W179: Sat
A180: Subdrain Capacity | B180: (m3/s) | G180: 0 | J180: Unassigned | L180: =100-SUM(L176:L179) -> 0 | M180: =100-SUM(M176:M179) -> 0 | N180: =100 - SUM(N176:N179) -> 0 | P180: Jan
P181: Feb
P182: Mar
A183: % of Runoff Allocated To: | C183: Runoff Allocated from Cover Type/ Facility: | J183: Irrigation Crop Profile or Scheduling Assignment: | P183: Apr
C184: Impervious | D184: Pervious | E184: Absorbent | F184: Green Roof | G184: Bioretention/ | H184: Storage/ | I184: Discharge | P184: May | W184: 25
C185: Surface | D185: Surface | E185: Landscaping | F185: Media | G185: Bioswale | H185: Reuse | J185: Pervious Surface Cover Type | P185: Jun | W185: 25
G186: Media | H186: Tank | J186: Use Irrigation Schedule | K186: No | L186: Schedule Number | M186: 1 | N186: =IF(AND(K186="Yes",K187="Yes"), "Use Either Irrigation Schedule or Crop Profile", "") ->  | P186: Jul | W186: 25
A187: Pervious Surface | C187: 0 | F187: 0 | J187: Use Crop Demand Profile | K187: No | L187: Profile Number | M187: 1 | P187: Aug | W187: 25
A188: Absorbent Landscaping | C188: 0 | D188: 0 | F188: 0 | J188: Absorbent Landscaping Cover Type | P188: Sep | W188: 25
A189: Green Roof Media | C189: 0 | J189: Use Irrigation Schedule | K189: No | L189: Schedule Number | M189: 1 | N189: =IF(AND(K189="Yes",K190="Yes"), "Use Either Irrigation Schedule or Crop Profile", "") ->  | P189: Oct
A190: Storage/ Reuse Tank | C190: 0 | D190: 0 | E190: 0 | F190: 0 | J190: Use Crop Demand Profile | K190: No | L190: Profile Number | M190: 1 | P190: Nov
A191: Bioretention/Bioswale Media | C191: 0 | D191: 0 | E191: 0 | F191: 0 | J191: Green Roof Media | P191: Dec
A192: Discharge | C192: =100 -SUM(C187:C191) -> 100 | D192: =100 -D188-SUM(D190:D191) -> 100 | E192: =100- SUM(E190:E191) -> 100 | F192: =100 - SUM(F190:F191)-SUM(F187:F188) -> 100 | G192: 100 | H192: 100 | J192: Use Irrigation Schedule | K192: No | L192: Schedule Number | M192: 1 | N192: =IF(AND(K192="Yes",K193="Yes"), "Use Either Irrigation Schedule or Crop Profile", "") -> 
A193: Pond 1/Pond 2 | I193: POND #2 | J193: Use Crop Demand Profile | K193: No | L193: Profile Number | M193: 1
P194: Precipitation treshold (mm) during irrigation day and preceding two days | W194: 10
A197: WBSCC - PROJECT DATA SHEET - Sub-Catchment 5: Parameters, Runoff Allocation | J197: WBSCC - PROJECT DATA SHEET - Sub-Catchment 5: Crops, Irrigation, Storage/Reuse Tank | P197: WBSCC - PROJECT DATA SHEET - Sub-Catchment 5: Weekly Watering Schedule
A198: ="Usage: " & $K$32 -> Usage:
A199: Sub-catchment Parameters | C199: Cover Type | J199: Storage/ Reuse Tank Parameters | M199: Values | P199: Weekly Watering Schedule #1 (Depth of Irrigation) (mm)
C200: Impervious | D200: Pervious | E200: Absorbent | F200: Green Roof | G200: Bioretention/ | H200: Unassigned
C201: Surface | D201: Surface | E201: Landscaping | F201: Media | G201: Bioswale | H201: Area | J201: Tank Water Surface Area (assumed bath tub) | L201: (m2) | Q201: Sun | R201: Mon | S201: Tue | T201: Wed | U201: Thu | V201: Fri | W201: Sat
G202: Medium | J202: Spill Crest Elevation, above Tank Floor | L202: (m) | P202: Jan
A203: ="Area (Total: " & N108 & ")" -> Area (Total: ) | B203: (ha) | C203: 0 | D203: 0 | E203: 0 | F203: 0 | G203: 0 | H203: =N32-SUM(C203:G203) -> 0 | J203: Starting Water Level | L203: (m) | P203: Feb
A204: Depression Loss | B204: (mm) | C204: 1.6 | J204: Minimum Tank Water Elevation for Recharge | L204: (m) | P204: Mar
A205: Soil Type: Sand | F205: 100 | G205: 90 | J205: Maximum Tank Water Elevation for Recharge | L205: (m) | P205: Apr
A206: Silt | D206: 100 | E206: 100 | F206: 0 | G206: 10 | J206: Use Recharge from Storm Ponds | M206: No | N206: =IF($M206="Yes",IF($M207="POND #1",N167+1,N167),N167) -> 0 | O206: =IF($M206="Yes",IF($M207="POND #2",O167+1,O167),O167) -> 0 | P206: May | V206: 10
A207: Clay | J207: Recharge Source | M207: POND #1 | N207: =IF(AND($M206="Yes",$M207="POND #1",N206>1),"POND #1 ALREADY SELECTED","") ->  | P207: Jun | S207: 10 | V207: 15
A208: Custom | J208: Additional Non-Potable Demand | L208: (l/s) | M208: 0 | N208: =IF(AND($M206="Yes",$M207="POND #2",O206>1),"POND #2 ALREADY SELECTED","") ->  | P208: Jul | R208: 10 | T208: 10 | V208: 15
A209: Unassigned | D209: =100 - SUM(D205:D208) -> 0 | E209: =100 - SUM(E205:E208) -> 0 | F209: =100 - SUM(F205:F208) -> 0 | G209: =100 - SUM(G205:G208) -> 0 | J209: Municipal Supply Available | M209: No | P209: Aug | R209: 10 | T209: 10 | V209: 15
A210: Soil or Media Depth | B210: (mm) | D210: 100 | E210: 50 | F210: 200 | G210: 600 | P210: Sep | S210: 10 | V210: 15
A211: Porosity | D211: 0.46 | E211: 0.46 | F211: 0.512 | G211: 0.469 | P211: Oct
A212: Field Capacity | D212: 0.271 | E212: 0.271 | F212: 0.132 | G212: 0.092 | J212: Ground Cover Crop-Mix Profiles (Mix as %) | P212: Nov
A213: Wilting Point | D213: 0.126 | E213: 0.126 | F213: 0.057 | G213: 0.038 | P213: Dec
A214: Saturated Hydraulic Conductivity | B214: (m/s) | D214: 5e-06 | E214: 5e-06 | F214: 2.5e-05 | G214: 3.5e-05 | J214: Crops | L214: Profile #1 | M214: Profile #2 | N214: Profile #3
A215: Sub-soil Hydraulic Conductivity | B215: (m/s) | D215: 1e-08 | E215: 1e-08 | G215: 5e-08 | J215: =$L$9 -> KENTUCKY BLUE GRASS | L215: 90 | M215: 100 | N215: 50
A216: Ponding Depth | B216: (mm) | D216: 0 | E216: 0 | F216: 0 | G216: 300 | J216: =+$M$9 -> SAGE BRUSH | L216: 10 | M216: 0 | N216: 50 | P216: Weekly Watering Schedule #2 (Depth of Irrigation) (mm)
... 116 more rows

Sheet SD1
A1: CLOGGING FACTORS | J1: EXTERNAL RUN-ON (m3)
A3: Sub-catchment | B3: Year | C3: I/P Ratios | J3: Date | K3: SC1 | L3: SC2 | M3: SC3 | N3: SC4 | O3: SC5 | Q3: Note: | R3: User-defined I/P ratios should be in the ascending order
C4: 1 | D4: 2 | E4: 4 | F4: 6 | G4: 8 | H4: 10 | J4: 1960-01-01 | K4: 0 | L4: 0 | M4: 0 | N4: 0 | O4: 0 | R4: in ranges C4:H4 (for SC1), C57:H57 (for SC2), C110:H110 (for SC3)
A5: SC1 | B5: 1960 | C5: 1 | D5: 1 | E5: 1 | F5: 1 | G5: 1 | H5: 1 | J5: 1960-01-02 | K5: 0 | L5: 0 | M5: 0 | N5: 0 | O5: 0 | R5: C163:H163 (for SC4) and C216:H216 (for SC5)
B6: 1961 | C6: 0.99 | D6: 0.99 | E6: 0.99 | F6: 0.99 | G6: 0.98 | H6: 0.98 | J6: 1960-01-03 | K6: 0 | L6: 0 | M6: 0 | N6: 0 | O6: 0
B7: 1962 | C7: 0.98 | D7: 0.98 | E7: 0.97 | F7: 0.97 | G7: 0.97 | H7: 0.97 | J7: 1960-01-04 | K7: 0 | L7: 0 | M7: 0 | N7: 0 | O7: 0
B8: 1963 | C8: 0.97 | D8: 0.96 | E8: 0.96 | F8: 0.96 | G8: 0.95 | H8: 0.95 | J8: 1960-01-05 | K8: 0 | L8: 0 | M8: 0 | N8: 0 | O8: 0
B9: 1964 | C9: 0.96 | D9: 0.95 | E9: 0.95 | F9: 0.94 | G9: 0.94 | H9: 0.93 | J9: 1960-01-06 | K9: 0 | L9: 0 | M9: 0 | N9: 0 | O9: 0
B10: 1965 | C10: 0.95 | D10: 0.94 | E10: 0.93 | F10: 0.93 | G10: 0.92 | H10: 0.92 | J10: 1960-01-07 | K10: 0 | L10: 0 | M10: 0 | N10: 0 | O10: 0
B11: 1966 | C11: 0.94 | D11: 0.93 | E11: 0.92 | F11: 0.91 | G11: 0.91 | H11: 0.9 | J11: 1960-01-08 | K11: 0 | L11: 0 | M11: 0 | N11: 0 | O11: 0
B12: 1967 | C12: 0.93 | D12: 0.91 | E12: 0.91 | F12: 0.9 | G12: 0.89 | H12: 0.89 | J12: 1960-01-09 | K12: 0 | L12: 0 | M12: 0 | N12: 0 | O12: 0
B13: 1968 | C13: 0.92 | D13: 0.9 | E13: 0.89 | F13: 0.89 | G13: 0.88 | H13: 0.87 | J13: 1960-01-10 | K13: 0 | L13: 0 | M13: 0 | N13: 0 | O13: 0
B14: 1969 | C14: 0.91 | D14: 0.89 | E14: 0.88 | F14: 0.87 | G14: 0.86 | H14: 0.85 | J14: 1960-01-11 | K14: 0 | L14: 0 | M14: 0 | N14: 0 | O14: 0
B15: 1970 | C15: 0.9 | D15: 0.88 | E15: 0.87 | F15: 0.86 | G15: 0.85 | H15: 0.84 | J15: 1960-01-12 | K15: 0 | L15: 0 | M15: 0 | N15: 0 | O15: 0
B16: 1971 | C16: 0.89 | D16: 0.87 | E16: 0.85 | F16: 0.84 | G16: 0.83 | H16: 0.82 | J16: 1960-01-13 | K16: 0 | L16: 0 | M16: 0 | N16: 0 | O16: 0
B17: 1972 | C17: 0.88 | D17: 0.85 | E17: 0.84 | F17: 0.83 | G17: 0.82 | H17: 0.8 | J17: 1960-01-14 | K17: 0 | L17: 0 | M17: 0 | N17: 0 | O17: 0
B18: 1973 | C18: 0.87 | D18: 0.84 | E18: 0.83 | F18: 0.81 | G18: 0.8 | H18: 0.79 | J18: 1960-01-15 | K18: 0 | L18: 0 | M18: 0 | N18: 0 | O18: 0
B19: 1974 | C19: 0.86 | D19: 0.83 | E19: 0.81 | F19: 0.8 | G19: 0.79 | H19: 0.77 | J19: 1960-01-16 | K19: 0 | L19: 0 | M19: 0 | N19: 0 | O19: 0
B20: 1975 | C20: 0.85 | D20: 0.82 | E20: 0.8 | F20: 0.79 | G20: 0.77 | H20: 0.76 | J20: 1960-01-17 | K20: 0 | L20: 0 | M20: 0 | N20: 0 | O20: 0
B21: 1976 | C21: 0.84 | D21: 0.8 | E21: 0.79 | F21: 0.77 | G21: 0.76 | H21: 0.74 | J21: 1960-01-18 | K21: 0 | L21: 0 | M21: 0 | N21: 0 | O21: 0
B22: 1977 | C22: 0.83 | D22: 0.79 | E22: 0.77 | F22: 0.76 | G22: 0.74 | H22: 0.72 | J22: 1960-01-19 | K22: 0 | L22: 0 | M22: 0 | N22: 0 | O22: 0
B23: 1978 | C23: 0.82 | D23: 0.78 | E23: 0.76 | F23: 0.74 | G23: 0.72 | H23: 0.71 | J23: 1960-01-20 | K23: 0 | L23: 0 | M23: 0 | N23: 0 | O23: 0
B24: 1979 | C24: 0.81 | D24: 0.77 | E24: 0.75 | F24: 0.73 | G24: 0.71 | H24: 0.69 | J24: 1960-01-21 | K24: 0 | L24: 0 | M24: 0 | N24: 0 | O24: 0
B25: 1980 | C25: 0.8 | D25: 0.76 | E25: 0.73 | F25: 0.71 | G25: 0.69 | H25: 0.67 | J25: 1960-01-22 | K25: 0 | L25: 0 | M25: 0 | N25: 0 | O25: 0
B26: 1981 | C26: 0.79 | D26: 0.74 | E26: 0.72 | F26: 0.7 | G26: 0.68 | H26: 0.66 | J26: 1960-01-23 | K26: 0 | L26: 0 | M26: 0 | N26: 0 | O26: 0
B27: 1982 | C27: 0.78 | D27: 0.73 | E27: 0.71 | F27: 0.69 | G27: 0.66 | H27: 0.64 | J27: 1960-01-24 | K27: 0 | L27: 0 | M27: 0 | N27: 0 | O27: 0
B28: 1983 | C28: 0.77 | D28: 0.72 | E28: 0.69 | F28: 0.67 | G28: 0.65 | H28: 0.62 | J28: 1960-01-25 | K28: 0 | L28: 0 | M28: 0 | N28: 0 | O28: 0
B29: 1984 | C29: 0.76 | D29: 0.71 | E29: 0.68 | F29: 0.66 | G29: 0.63 | H29: 0.61 | J29: 1960-01-26 | K29: 0 | L29: 0 | M29: 0 | N29: 0 | O29: 0
B30: 1985 | C30: 0.74 | D30: 0.69 | E30: 0.67 | F30: 0.64 | G30: 0.62 | H30: 0.59 | J30: 1960-01-27 | K30: 0 | L30: 0 | M30: 0 | N30: 0 | O30: 0
B31: 1986 | C31: 0.73 | D31: 0.68 | E31: 0.66 | F31: 0.63 | G31: 0.6 | H31: 0.58 | J31: 1960-01-28 | K31: 0 | L31: 0 | M31: 0 | N31: 0 | O31: 0
B32: 1987 | C32: 0.72 | D32: 0.67 | E32: 0.64 | F32: 0.61 | G32: 0.59 | H32: 0.56 | J32: 1960-01-29 | K32: 0 | L32: 0 | M32: 0 | N32: 0 | O32: 0
B33: 1988 | C33: 0.71 | D33: 0.66 | E33: 0.63 | F33: 0.6 | G33: 0.57 | H33: 0.54 | J33: 1960-01-30 | K33: 0 | L33: 0 | M33: 0 | N33: 0 | O33: 0
B34: 1989 | C34: 0.7 | D34: 0.64 | E34: 0.62 | F34: 0.59 | G34: 0.56 | H34: 0.53 | J34: 1960-01-31 | K34: 0 | L34: 0 | M34: 0 | N34: 0 | O34: 0
B35: 1990 | C35: 0.69 | D35: 0.63 | E35: 0.6 | F35: 0.57 | G35: 0.54 | H35: 0.51 | J35: 1960-02-01 | K35: 0 | L35: 0 | M35: 0 | N35: 0 | O35: 0
B36: 1991 | C36: 0.68 | D36: 0.62 | E36: 0.59 | F36: 0.56 | G36: 0.53 | H36: 0.49 | J36: 1960-02-02 | K36: 0 | L36: 0 | M36: 0 | N36: 0 | O36: 0
B37: 1992 | C37: 0.67 | D37: 0.61 | E37: 0.58 | F37: 0.54 | G37: 0.51 | H37: 0.48 | J37: 1960-02-03 | K37: 0 | L37: 0 | M37: 0 | N37: 0 | O37: 0
B38: 1993 | C38: 0.66 | D38: 0.6 | E38: 0.56 | F38: 0.53 | G38: 0.49 | H38: 0.46 | J38: 1960-02-04 | K38: 0 | L38: 0 | M38: 0 | N38: 0 | O38: 0
B39: 1994 | C39: 0.65 | D39: 0.58 | E39: 0.55 | F39: 0.51 | G39: 0.48 | H39: 0.44 | J39: 1960-02-05 | K39: 0 | L39: 0 | M39: 0 | N39: 0 | O39: 0
B40: 1995 | C40: 0.64 | D40: 0.57 | E40: 0.54 | F40: 0.5 | G40: 0.46 | H40: 0.43 | J40: 1960-02-06 | K40: 0 | L40: 0 | M40: 0 | N40: 0 | O40: 0
B41: 1996 | C41: 0.63 | D41: 0.56 | E41: 0.52 | F41: 0.49 | G41: 0.45 | H41: 0.41 | J41: 1960-02-07 | K41: 0 | L41: 0 | M41: 0 | N41: 0 | O41: 0
B42: 1997 | C42: 0.62 | D42: 0.55 | E42: 0.51 | F42: 0.47 | G42: 0.43 | H42: 0.4 | J42: 1960-02-08 | K42: 0 | L42: 0 | M42: 0 | N42: 0 | O42: 0
B43: 1998 | C43: 0.61 | D43: 0.53 | E43: 0.5 | F43: 0.46 | G43: 0.42 | H43: 0.38 | J43: 1960-02-09 | K43: 0 | L43: 0 | M43: 0 | N43: 0 | O43: 0
B44: 1999 | C44: 0.6 | D44: 0.52 | E44: 0.48 | F44: 0.44 | G44: 0.4 | H44: 0.36 | J44: 1960-02-10 | K44: 0 | L44: 0 | M44: 0 | N44: 0 | O44: 0
B45: 2000 | C45: 0.59 | D45: 0.51 | E45: 0.47 | F45: 0.43 | G45: 0.39 | H45: 0.35 | J45: 1960-02-11 | K45: 0 | L45: 0 | M45: 0 | N45: 0 | O45: 0
B46: 2001 | C46: 0.58 | D46: 0.5 | E46: 0.46 | F46: 0.41 | G46: 0.37 | H46: 0.33 | J46: 1960-02-12 | K46: 0 | L46: 0 | M46: 0 | N46: 0 | O46: 0
B47: 2002 | C47: 0.57 | D47: 0.49 | E47: 0.44 | F47: 0.4 | G47: 0.36 | H47: 0.31 | J47: 1960-02-13 | K47: 0 | L47: 0 | M47: 0 | N47: 0 | O47: 0
B48: 2003 | C48: 0.56 | D48: 0.47 | E48: 0.43 | F48: 0.39 | G48: 0.34 | H48: 0.3 | J48: 1960-02-14 | K48: 0 | L48: 0 | M48: 0 | N48: 0 | O48: 0
B49: 2004 | C49: 0.55 | D49: 0.46 | E49: 0.42 | F49: 0.37 | G49: 0.33 | H49: 0.28 | J49: 1960-02-15 | K49: 0 | L49: 0 | M49: 0 | N49: 0 | O49: 0
B50: 2005 | C50: 0.54 | D50: 0.45 | E50: 0.4 | F50: 0.36 | G50: 0.31 | H50: 0.27 | J50: 1960-02-16 | K50: 0 | L50: 0 | M50: 0 | N50: 0 | O50: 0
B51: 2006 | C51: 0.53 | D51: 0.44 | E51: 0.39 | F51: 0.34 | G51: 0.3 | H51: 0.25 | J51: 1960-02-17 | K51: 0 | L51: 0 | M51: 0 | N51: 0 | O51: 0
B52: 2007 | C52: 0.52 | D52: 0.42 | E52: 0.38 | F52: 0.33 | G52: 0.28 | H52: 0.23 | J52: 1960-02-18 | K52: 0 | L52: 0 | M52: 0 | N52: 0 | O52: 0
B53: 2008 | C53: 0.51 | D53: 0.41 | E53: 0.36 | F53: 0.31 | G53: 0.27 | H53: 0.22 | J53: 1960-02-19 | K53: 0 | L53: 0 | M53: 0 | N53: 0 | O53: 0
B54: 2009 | C54: 0.5 | D54: 0.4 | E54: 0.35 | F54: 0.3 | G54: 0.25 | H54: 0.2 | J54: 1960-02-20 | K54: 0 | L54: 0 | M54: 0 | N54: 0 | O54: 0
B55: 2010 | C55: 0.5 | D55: 0.4 | E55: 0.35 | F55: 0.3 | G55: 0.25 | H55: 0.2 | J55: 1960-02-21 | K55: 0 | L55: 0 | M55: 0 | N55: 0 | O55: 0
A56: Sub-catchment | B56: Year | C56: I/P Ratios | J56: 1960-02-22 | K56: 0 | L56: 0 | M56: 0 | N56: 0 | O56: 0
C57: 1 | D57: 2 | E57: 4 | F57: 6 | G57: 8 | H57: 10 | J57: 1960-02-23 | K57: 0 | L57: 0 | M57: 0 | N57: 0 | O57: 0
A58: SC2 | B58: 1960 | C58: 1 | D58: 1 | E58: 1 | F58: 1 | G58: 1 | H58: 1 | J58: 1960-02-24 | K58: 0 | L58: 0 | M58: 0 | N58: 0 | O58: 0
B59: 1961 | C59: 0.99 | D59: 0.99 | E59: 0.99 | F59: 0.99 | G59: 0.98 | H59: 0.98 | J59: 1960-02-25 | K59: 0 | L59: 0 | M59: 0 | N59: 0 | O59: 0
B60: 1962 | C60: 0.98 | D60: 0.98 | E60: 0.97 | F60: 0.97 | G60: 0.97 | H60: 0.97 | J60: 1960-02-26 | K60: 0 | L60: 0 | M60: 0 | N60: 0 | O60: 0
B61: 1963 | C61: 0.97 | D61: 0.96 | E61: 0.96 | F61: 0.96 | G61: 0.95 | H61: 0.95 | J61: 1960-02-27 | K61: 0 | L61: 0 | M61: 0 | N61: 0 | O61: 0
B62: 1964 | C62: 0.96 | D62: 0.95 | E62: 0.95 | F62: 0.94 | G62: 0.94 | H62: 0.93 | J62: 1960-02-28 | K62: 0 | L62: 0 | M62: 0 | N62: 0 | O62: 0
B63: 1965 | C63: 0.95 | D63: 0.94 | E63: 0.93 | F63: 0.93 | G63: 0.92 | H63: 0.92 | J63: 1960-02-29 | K63: 0 | L63: 0 | M63: 0 | N63: 0 | O63: 0
B64: 1966 | C64: 0.94 | D64: 0.93 | E64: 0.92 | F64: 0.91 | G64: 0.91 | H64: 0.9 | J64: 1960-03-01 | K64: 0 | L64: 0 | M64: 0 | N64: 0 | O64: 0
B65: 1967 | C65: 0.93 | D65: 0.91 | E65: 0.91 | F65: 0.9 | G65: 0.89 | H65: 0.89 | J65: 1960-03-02 | K65: 0 | L65: 0 | M65: 0 | N65: 0 | O65: 0
B66: 1968 | C66: 0.92 | D66: 0.9 | E66: 0.89 | F66: 0.89 | G66: 0.88 | H66: 0.87 | J66: 1960-03-03 | K66: 0 | L66: 0 | M66: 0 | N66: 0 | O66: 0
B67: 1969 | C67: 0.91 | D67: 0.89 | E67: 0.88 | F67: 0.87 | G67: 0.86 | H67: 0.85 | J67: 1960-03-04 | K67: 0 | L67: 0 | M67: 0 | N67: 0 | O67: 0
B68: 1970 | C68: 0.9 | D68: 0.88 | E68: 0.87 | F68: 0.86 | G68: 0.85 | H68: 0.84 | J68: 1960-03-05 | K68: 0 | L68: 0 | M68: 0 | N68: 0 | O68: 0
B69: 1971 | C69: 0.89 | D69: 0.87 | E69: 0.85 | F69: 0.84 | G69: 0.83 | H69: 0.82 | J69: 1960-03-06 | K69: 0 | L69: 0 | M69: 0 | N69: 0 | O69: 0
B70: 1972 | C70: 0.88 | D70: 0.85 | E70: 0.84 | F70: 0.83 | G70: 0.82 | H70: 0.8 | J70: 1960-03-07 | K70: 0 | L70: 0 | M70: 0 | N70: 0 | O70: 0
B71: 1973 | C71: 0.87 | D71: 0.84 | E71: 0.83 | F71: 0.81 | G71: 0.8 | H71: 0.79 | J71: 1960-03-08 | K71: 0 | L71: 0 | M71: 0 | N71: 0 | O71: 0
B72: 1974 | C72: 0.86 | D72: 0.83 | E72: 0.81 | F72: 0.8 | G72: 0.79 | H72: 0.77 | J72: 1960-03-09 | K72: 0 | L72: 0 | M72: 0 | N72: 0 | O72: 0
B73: 1975 | C73: 0.85 | D73: 0.82 | E73: 0.8 | F73: 0.79 | G73: 0.77 | H73: 0.76 | J73: 1960-03-10 | K73: 0 | L73: 0 | M73: 0 | N73: 0 | O73: 0
B74: 1976 | C74: 0.84 | D74: 0.8 | E74: 0.79 | F74: 0.77 | G74: 0.76 | H74: 0.74 | J74: 1960-03-11 | K74: 0 | L74: 0 | M74: 0 | N74: 0 | O74: 0
B75: 1977 | C75: 0.83 | D75: 0.79 | E75: 0.77 | F75: 0.76 | G75: 0.74 | H75: 0.72 | J75: 1960-03-12 | K75: 0 | L75: 0 | M75: 0 | N75: 0 | O75: 0
B76: 1978 | C76: 0.82 | D76: 0.78 | E76: 0.76 | F76: 0.74 | G76: 0.72 | H76: 0.71 | J76: 1960-03-13 | K76: 0 | L76: 0 | M76: 0 | N76: 0 | O76: 0
B77: 1979 | C77: 0.81 | D77: 0.77 | E77: 0.75 | F77: 0.73 | G77: 0.71 | H77: 0.69 | J77: 1960-03-14 | K77: 0 | L77: 0 | M77: 0 | N77: 0 | O77: 0
B78: 1980 | C78: 0.8 | D78: 0.76 | E78: 0.73 | F78: 0.71 | G78: 0.69 | H78: 0.67 | J78: 1960-03-15 | K78: 0 | L78: 0 | M78: 0 | N78: 0 | O78: 0
B79: 1981 | C79: 0.79 | D79: 0.74 | E79: 0.72 | F79: 0.7 | G79: 0.68 | H79: 0.66 | J79: 1960-03-16 | K79: 0 | L79: 0 | M79: 0 | N79: 0 | O79: 0
B80: 1982 | C80: 0.78 | D80: 0.73 | E80: 0.71 | F80: 0.69 | G80: 0.66 | H80: 0.64 | J80: 1960-03-17 | K80: 0 | L80: 0 | M80: 0 | N80: 0 | O80: 0
B81: 1983 | C81: 0.77 | D81: 0.72 | E81: 0.69 | F81: 0.67 | G81: 0.65 | H81: 0.62 | J81: 1960-03-18 | K81: 0 | L81: 0 | M81: 0 | N81: 0 | O81: 0
B82: 1984 | C82: 0.76 | D82: 0.71 | E82: 0.68 | F82: 0.66 | G82: 0.63 | H82: 0.61 | J82: 1960-03-19 | K82: 0 | L82: 0 | M82: 0 | N82: 0 | O82: 0
B83: 1985 | C83: 0.74 | D83: 0.69 | E83: 0.67 | F83: 0.64 | G83: 0.62 | H83: 0.59 | J83: 1960-03-20 | K83: 0 | L83: 0 | M83: 0 | N83: 0 | O83: 0
B84: 1986 | C84: 0.73 | D84: 0.68 | E84: 0.66 | F84: 0.63 | G84: 0.6 | H84: 0.58 | J84: 1960-03-21 | K84: 0 | L84: 0 | M84: 0 | N84: 0 | O84: 0
B85: 1987 | C85: 0.72 | D85: 0.67 | E85: 0.64 | F85: 0.61 | G85: 0.59 | H85: 0.56 | J85: 1960-03-22 | K85: 0 | L85: 0 | M85: 0 | N85: 0 | O85: 0
B86: 1988 | C86: 0.71 | D86: 0.66 | E86: 0.63 | F86: 0.6 | G86: 0.57 | H86: 0.54 | J86: 1960-03-23 | K86: 0 | L86: 0 | M86: 0 | N86: 0 | O86: 0
B87: 1989 | C87: 0.7 | D87: 0.64 | E87: 0.62 | F87: 0.59 | G87: 0.56 | H87: 0.53 | J87: 1960-03-24 | K87: 0 | L87: 0 | M87: 0 | N87: 0 | O87: 0
B88: 1990 | C88: 0.69 | D88: 0.63 | E88: 0.6 | F88: 0.57 | G88: 0.54 | H88: 0.51 | J88: 1960-03-25 | K88: 0 | L88: 0 | M88: 0 | N88: 0 | O88: 0
B89: 1991 | C89: 0.68 | D89: 0.62 | E89: 0.59 | F89: 0.56 | G89: 0.53 | H89: 0.49 | J89: 1960-03-26 | K89: 0 | L89: 0 | M89: 0 | N89: 0 | O89: 0
B90: 1992 | C90: 0.67 | D90: 0.61 | E90: 0.58 | F90: 0.54 | G90: 0.51 | H90: 0.48 | J90: 1960-03-27 | K90: 0 | L90: 0 | M90: 0 | N90: 0 | O90: 0
B91: 1993 | C91: 0.66 | D91: 0.6 | E91: 0.56 | F91: 0.53 | G91: 0.49 | H91: 0.46 | J91: 1960-03-28 | K91: 0 | L91: 0 | M91: 0 | N91: 0 | O91: 0
B92: 1994 | C92: 0.65 | D92: 0.58 | E92: 0.55 | F92: 0.51 | G92: 0.48 | H92: 0.44 | J92: 1960-03-29 | K92: 0 | L92: 0 | M92: 0 | N92: 0 | O92: 0
B93: 1995 | C93: 0.64 | D93: 0.57 | E93: 0.54 | F93: 0.5 | G93: 0.46 | H93: 0.43 | J93: 1960-03-30 | K93: 0 | L93: 0 | M93: 0 | N93: 0 | O93: 0
B94: 1996 | C94: 0.63 | D94: 0.56 | E94: 0.52 | F94: 0.49 | G94: 0.45 | H94: 0.41 | J94: 1960-03-31 | K94: 0 | L94: 0 | M94: 0 | N94: 0 | O94: 0
B95: 1997 | C95: 0.62 | D95: 0.55 | E95: 0.51 | F95: 0.47 | G95: 0.43 | H95: 0.4 | J95: 1960-04-01 | K95: 0 | L95: 0 | M95: 0 | N95: 0 | O95: 0
B96: 1998 | C96: 0.61 | D96: 0.53 | E96: 0.5 | F96: 0.46 | G96: 0.42 | H96: 0.38 | J96: 1960-04-02 | K96: 0 | L96: 0 | M96: 0 | N96: 0 | O96: 0
B97: 1999 | C97: 0.6 | D97: 0.52 | E97: 0.48 | F97: 0.44 | G97: 0.4 | H97: 0.36 | J97: 1960-04-03 | K97: 0 | L97: 0 | M97: 0 | N97: 0 | O97: 0
B98: 2000 | C98: 0.59 | D98: 0.51 | E98: 0.47 | F98: 0.43 | G98: 0.39 | H98: 0.35 | J98: 1960-04-04 | K98: 0 | L98: 0 | M98: 0 | N98: 0 | O98: 0
B99: 2001 | C99: 0.58 | D99: 0.5 | E99: 0.46 | F99: 0.41 | G99: 0.37 | H99: 0.33 | J99: 1960-04-05 | K99: 0 | L99: 0 | M99: 0 | N99: 0 | O99: 0
B100: 2002 | C100: 0.57 | D100: 0.49 | E100: 0.44 | F100: 0.4 | G100: 0.36 | H100: 0.31 | J100: 1960-04-06 | K100: 0 | L100: 0 | M100: 0 | N100: 0 | O100: 0
B101: 2003 | C101: 0.56 | D101: 0.47 | E101: 0.43 | F101: 0.39 | G101: 0.34 | H101: 0.3 | J101: 1960-04-07 | K101: 0 | L101: 0 | M101: 0 | N101: 0 | O101: 0
B102: 2004 | C102: 0.55 | D102: 0.46 | E102: 0.42 | F102: 0.37 | G102: 0.33 | H102: 0.28 | J102: 1960-04-08 | K102: 0 | L102: 0 | M102: 0 | N102: 0 | O102: 0
B103: 2005 | C103: 0.54 | D103: 0.45 | E103: 0.4 | F103: 0.36 | G103: 0.31 | H103: 0.27 | J103: 1960-04-09 | K103: 0 | L103: 0 | M103: 0 | N103: 0 | O103: 0
B104: 2006 | C104: 0.53 | D104: 0.44 | E104: 0.39 | F104: 0.34 | G104: 0.3 | H104: 0.25 | J104: 1960-04-10 | K104: 0 | L104: 0 | M104: 0 | N104: 0 | O104: 0
B105: 2007 | C105: 0.52 | D105: 0.42 | E105: 0.38 | F105: 0.33 | G105: 0.28 | H105: 0.23 | J105: 1960-04-11 | K105: 0 | L105: 0 | M105: 0 | N105: 0 | O105: 0
B106: 2008 | C106: 0.51 | D106: 0.41 | E106: 0.36 | F106: 0.31 | G106: 0.27 | H106: 0.22 | J106: 1960-04-12 | K106: 0 | L106: 0 | M106: 0 | N106: 0 | O106: 0
B107: 2009 | C107: 0.5 | D107: 0.4 | E107: 0.35 | F107: 0.3 | G107: 0.25 | H107: 0.2 | J107: 1960-04-13 | K107: 0 | L107: 0 | M107: 0 | N107: 0 | O107: 0
B108: 2010 | C108: 0.5 | D108: 0.4 | E108: 0.35 | F108: 0.3 | G108: 0.25 | H108: 0.2 | J108: 1960-04-14 | K108: 0 | L108: 0 | M108: 0 | N108: 0 | O108: 0
A109: Sub-catchment | B109: Year | C109: I/P Ratios | J109: 1960-04-15 | K109: 0 | L109: 0 | M109: 0 | N109: 0 | O109: 0
C110: 1 | D110: 2 | E110: 4 | F110: 6 | G110: 8 | H110: 10 | J110: 1960-04-16 | K110: 0 | L110: 0 | M110: 0 | N110: 0 | O110: 0
A111: SC3 | B111: 1960 | C111: 1 | D111: 1 | E111: 1 | F111: 1 | G111: 1 | H111: 1 | J111: 1960-04-17 | K111: 0 | L111: 0 | M111: 0 | N111: 0 | O111: 0
B112: 1961 | C112: 0.99 | D112: 0.99 | E112: 0.99 | F112: 0.99 | G112: 0.98 | H112: 0.98 | J112: 1960-04-18 | K112: 0 | L112: 0 | M112: 0 | N112: 0 | O112: 0
B113: 1962 | C113: 0.98 | D113: 0.98 | E113: 0.97 | F113: 0.97 | G113: 0.97 | H113: 0.97 | J113: 1960-04-19 | K113: 0 | L113: 0 | M113: 0 | N113: 0 | O113: 0
B114: 1963 | C114: 0.97 | D114: 0.96 | E114: 0.96 | F114: 0.96 | G114: 0.95 | H114: 0.95 | J114: 1960-04-20 | K114: 0 | L114: 0 | M114: 0 | N114: 0 | O114: 0
B115: 1964 | C115: 0.96 | D115: 0.95 | E115: 0.95 | F115: 0.94 | G115: 0.94 | H115: 0.93 | J115: 1960-04-21 | K115: 0 | L115: 0 | M115: 0 | N115: 0 | O115: 0
B116: 1965 | C116: 0.95 | D116: 0.94 | E116: 0.93 | F116: 0.93 | G116: 0.92 | H116: 0.92 | J116: 1960-04-22 | K116: 0 | L116: 0 | M116: 0 | N116: 0 | O116: 0
B117: 1966 | C117: 0.94 | D117: 0.93 | E117: 0.92 | F117: 0.91 | G117: 0.91 | H117: 0.9 | J117: 1960-04-23 | K117: 0 | L117: 0 | M117: 0 | N117: 0 | O117: 0
B118: 1967 | C118: 0.93 | D118: 0.91 | E118: 0.91 | F118: 0.9 | G118: 0.89 | H118: 0.89 | J118: 1960-04-24 | K118: 0 | L118: 0 | M118: 0 | N118: 0 | O118: 0
B119: 1968 | C119: 0.92 | D119: 0.9 | E119: 0.89 | F119: 0.89 | G119: 0.88 | H119: 0.87 | J119: 1960-04-25 | K119: 0 | L119: 0 | M119: 0 | N119: 0 | O119: 0
B120: 1969 | C120: 0.91 | D120: 0.89 | E120: 0.88 | F120: 0.87 | G120: 0.86 | H120: 0.85 | J120: 1960-04-26 | K120: 0 | L120: 0 | M120: 0 | N120: 0 | O120: 0
B121: 1970 | C121: 0.9 | D121: 0.88 | E121: 0.87 | F121: 0.86 | G121: 0.85 | H121: 0.84 | J121: 1960-04-27 | K121: 0 | L121: 0 | M121: 0 | N121: 0 | O121: 0
B122: 1971 | C122: 0.89 | D122: 0.87 | E122: 0.85 | F122: 0.84 | G122: 0.83 | H122: 0.82 | J122: 1960-04-28 | K122: 0 | L122: 0 | M122: 0 | N122: 0 | O122: 0
B123: 1972 | C123: 0.88 | D123: 0.85 | E123: 0.84 | F123: 0.83 | G123: 0.82 | H123: 0.8 | J123: 1960-04-29 | K123: 0 | L123: 0 | M123: 0 | N123: 0 | O123: 0
B124: 1973 | C124: 0.87 | D124: 0.84 | E124: 0.83 | F124: 0.81 | G124: 0.8 | H124: 0.79 | J124: 1960-04-30 | K124: 0 | L124: 0 | M124: 0 | N124: 0 | O124: 0
B125: 1974 | C125: 0.86 | D125: 0.83 | E125: 0.81 | F125: 0.8 | G125: 0.79 | H125: 0.77 | J125: 1960-05-01 | K125: 0 | L125: 0 | M125: 0 | N125: 0 | O125: 0
B126: 1975 | C126: 0.85 | D126: 0.82 | E126: 0.8 | F126: 0.79 | G126: 0.77 | H126: 0.76 | J126: 1960-05-02 | K126: 0 | L126: 0 | M126: 0 | N126: 0 | O126: 0
B127: 1976 | C127: 0.84 | D127: 0.8 | E127: 0.79 | F127: 0.77 | G127: 0.76 | H127: 0.74 | J127: 1960-05-03 | K127: 0 | L127: 0 | M127: 0 | N127: 0 | O127: 0
B128: 1977 | C128: 0.83 | D128: 0.79 | E128: 0.77 | F128: 0.76 | G128: 0.74 | H128: 0.72 | J128: 1960-05-04 | K128: 0 | L128: 0 | M128: 0 | N128: 0 | O128: 0
B129: 1978 | C129: 0.82 | D129: 0.78 | E129: 0.76 | F129: 0.74 | G129: 0.72 | H129: 0.71 | J129: 1960-05-05 | K129: 0 | L129: 0 | M129: 0 | N129: 0 | O129: 0
B130: 1979 | C130: 0.81 | D130: 0.77 | E130: 0.75 | F130: 0.73 | G130: 0.71 | H130: 0.69 | J130: 1960-05-06 | K130: 0 | L130: 0 | M130: 0 | N130: 0 | O130: 0
B131: 1980 | C131: 0.8 | D131: 0.76 | E131: 0.73 | F131: 0.71 | G131: 0.69 | H131: 0.67 | J131: 1960-05-07 | K131: 0 | L131: 0 | M131: 0 | N131: 0 | O131: 0
B132: 1981 | C132: 0.79 | D132: 0.74 | E132: 0.72 | F132: 0.7 | G132: 0.68 | H132: 0.66 | J132: 1960-05-08 | K132: 0 | L132: 0 | M132: 0 | N132: 0 | O132: 0
B133: 1982 | C133: 0.78 | D133: 0.73 | E133: 0.71 | F133: 0.69 | G133: 0.66 | H133: 0.64 | J133: 1960-05-09 | K133: 0 | L133: 0 | M133: 0 | N133: 0 | O133: 0
B134: 1983 | C134: 0.77 | D134: 0.72 | E134: 0.69 | F134: 0.67 | G134: 0.65 | H134: 0.62 | J134: 1960-05-10 | K134: 0 | L134: 0 | M134: 0 | N134: 0 | O134: 0
B135: 1984 | C135: 0.76 | D135: 0.71 | E135: 0.68 | F135: 0.66 | G135: 0.63 | H135: 0.61 | J135: 1960-05-11 | K135: 0 | L135: 0 | M135: 0 | N135: 0 | O135: 0
B136: 1985 | C136: 0.74 | D136: 0.69 | E136: 0.67 | F136: 0.64 | G136: 0.62 | H136: 0.59 | J136: 1960-05-12 | K136: 0 | L136: 0 | M136: 0 | N136: 0 | O136: 0
B137: 1986 | C137: 0.73 | D137: 0.68 | E137: 0.66 | F137: 0.63 | G137: 0.6 | H137: 0.58 | J137: 1960-05-13 | K137: 0 | L137: 0 | M137: 0 | N137: 0 | O137: 0
B138: 1987 | C138: 0.72 | D138: 0.67 | E138: 0.64 | F138: 0.61 | G138: 0.59 | H138: 0.56 | J138: 1960-05-14 | K138: 0 | L138: 0 | M138: 0 | N138: 0 | O138: 0
B139: 1988 | C139: 0.71 | D139: 0.66 | E139: 0.63 | F139: 0.6 | G139: 0.57 | H139: 0.54 | J139: 1960-05-15 | K139: 0 | L139: 0 | M139: 0 | N139: 0 | O139: 0
B140: 1989 | C140: 0.7 | D140: 0.64 | E140: 0.62 | F140: 0.59 | G140: 0.56 | H140: 0.53 | J140: 1960-05-16 | K140: 0 | L140: 0 | M140: 0 | N140: 0 | O140: 0
B141: 1990 | C141: 0.69 | D141: 0.63 | E141: 0.6 | F141: 0.57 | G141: 0.54 | H141: 0.51 | J141: 1960-05-17 | K141: 0 | L141: 0 | M141: 0 | N141: 0 | O141: 0
B142: 1991 | C142: 0.68 | D142: 0.62 | E142: 0.59 | F142: 0.56 | G142: 0.53 | H142: 0.49 | J142: 1960-05-18 | K142: 0 | L142: 0 | M142: 0 | N142: 0 | O142: 0
B143: 1992 | C143: 0.67 | D143: 0.61 | E143: 0.58 | F143: 0.54 | G143: 0.51 | H143: 0.48 | J143: 1960-05-19 | K143: 0 | L143: 0 | M143: 0 | N143: 0 | O143: 0
B144: 1993 | C144: 0.66 | D144: 0.6 | E144: 0.56 | F144: 0.53 | G144: 0.49 | H144: 0.46 | J144: 1960-05-20 | K144: 0 | L144: 0 | M144: 0 | N144: 0 | O144: 0
B145: 1994 | C145: 0.65 | D145: 0.58 | E145: 0.55 | F145: 0.51 | G145: 0.48 | H145: 0.44 | J145: 1960-05-21 | K145: 0 | L145: 0 | M145: 0 | N145: 0 | O145: 0
B146: 1995 | C146: 0.64 | D146: 0.57 | E146: 0.54 | F146: 0.5 | G146: 0.46 | H146: 0.43 | J146: 1960-05-22 | K146: 0 | L146: 0 | M146: 0 | N146: 0 | O146: 0
B147: 1996 | C147: 0.63 | D147: 0.56 | E147: 0.52 | F147: 0.49 | G147: 0.45 | H147: 0.41 | J147: 1960-05-23 | K147: 0 | L147: 0 | M147: 0 | N147: 0 | O147: 0
B148: 1997 | C148: 0.62 | D148: 0.55 | E148: 0.51 | F148: 0.47 | G148: 0.43 | H148: 0.4 | J148: 1960-05-24 | K148: 0 | L148: 0 | M148: 0 | N148: 0 | O148: 0
B149: 1998 | C149: 0.61 | D149: 0.53 | E149: 0.5 | F149: 0.46 | G149: 0.42 | H149: 0.38 | J149: 1960-05-25 | K149: 0 | L149: 0 | M149: 0 | N149: 0 | O149: 0
B150: 1999 | C150: 0.6 | D150: 0.52 | E150: 0.48 | F150: 0.44 | G150: 0.4 | H150: 0.36 | J150: 1960-05-26 | K150: 0 | L150: 0 | M150: 0 | N150: 0 | O150: 0
B151: 2000 | C151: 0.59 | D151: 0.51 | E151: 0.47 | F151: 0.43 | G151: 0.39 | H151: 0.35 | J151: 1960-05-27 | K151: 0 | L151: 0 | M151: 0 | N151: 0 | O151: 0
B152: 2001 | C152: 0.58 | D152: 0.5 | E152: 0.46 | F152: 0.41 | G152: 0.37 | H152: 0.33 | J152: 1960-05-28 | K152: 0 | L152: 0 | M152: 0 | N152: 0 | O152: 0
B153: 2002 | C153: 0.57 | D153: 0.49 | E153: 0.44 | F153: 0.4 | G153: 0.36 | H153: 0.31 | J153: 1960-05-29 | K153: 0 | L153: 0 | M153: 0 | N153: 0 | O153: 0
B154: 2003 | C154: 0.56 | D154: 0.47 | E154: 0.43 | F154: 0.39 | G154: 0.34 | H154: 0.3 | J154: 1960-05-30 | K154: 0 | L154: 0 | M154: 0 | N154: 0 | O154: 0
B155: 2004 | C155: 0.55 | D155: 0.46 | E155: 0.42 | F155: 0.37 | G155: 0.33 | H155: 0.28 | J155: 1960-05-31 | K155: 0 | L155: 0 | M155: 0 | N155: 0 | O155: 0
B156: 2005 | C156: 0.54 | D156: 0.45 | E156: 0.4 | F156: 0.36 | G156: 0.31 | H156: 0.27 | J156: 1960-06-01 | K156: 0 | L156: 0 | M156: 0 | N156: 0 | O156: 0
B157: 2006 | C157: 0.53 | D157: 0.44 | E157: 0.39 | F157: 0.34 | G157: 0.3 | H157: 0.25 | J157: 1960-06-02 | K157: 0 | L157: 0 | M157: 0 | N157: 0 | O157: 0
B158: 2007 | C158: 0.52 | D158: 0.42 | E158: 0.38 | F158: 0.33 | G158: 0.28 | H158: 0.23 | J158: 1960-06-03 | K158: 0 | L158: 0 | M158: 0 | N158: 0 | O158: 0
B159: 2008 | C159: 0.51 | D159: 0.41 | E159: 0.36 | F159: 0.31 | G159: 0.27 | H159: 0.22 | J159: 1960-06-04 | K159: 0 | L159: 0 | M159: 0 | N159: 0 | O159: 0
B160: 2009 | C160: 0.5 | D160: 0.4 | E160: 0.35 | F160: 0.3 | G160: 0.25 | H160: 0.2 | J160: 1960-06-05 | K160: 0 | L160: 0 | M160: 0 | N160: 0 | O160: 0
B161: 2010 | C161: 0.5 | D161: 0.4 | E161: 0.35 | F161: 0.3 | G161: 0.25 | H161: 0.2 | J161: 1960-06-06 | K161: 0 | L161: 0 | M161: 0 | N161: 0 | O161: 0
A162: Sub-catchment | B162: Year | C162: I/P Ratios | J162: 1960-06-07 | K162: 0 | L162: 0 | M162: 0 | N162: 0 | O162: 0
C163: 1 | D163: 2 | E163: 4 | F163: 6 | G163: 8 | H163: 10 | J163: 1960-06-08 | K163: 0 | L163: 0 | M163: 0 | N163: 0 | O163: 0
A164: SC4 | B164: 1960 | C164: 1 | D164: 1 | E164: 1 | F164: 1 | G164: 1 | H164: 1 | J164: 1960-06-09 | K164: 0 | L164: 0 | M164: 0 | N164: 0 | O164: 0
B165: 1961 | C165: 0.99 | D165: 0.99 | E165: 0.99 | F165: 0.99 | G165: 0.98 | H165: 0.98 | J165: 1960-06-10 | K165: 0 | L165: 0 | M165: 0 | N165: 0 | O165: 0
B166: 1962 | C166: 0.98 | D166: 0.98 | E166: 0.97 | F166: 0.97 | G166: 0.97 | H166: 0.97 | J166: 1960-06-11 | K166: 0 | L166: 0 | M166: 0 | N166: 0 | O166: 0
B167: 1963 | C167: 0.97 | D167: 0.96 | E167: 0.96 | F167: 0.96 | G167: 0.95 | H167: 0.95 | J167: 1960-06-12 | K167: 0 | L167: 0 | M167: 0 | N167: 0 | O167: 0
B168: 1964 | C168: 0.96 | D168: 0.95 | E168: 0.95 | F168: 0.94 | G168: 0.94 | H168: 0.93 | J168: 1960-06-13 | K168: 0 | L168: 0 | M168: 0 | N168: 0 | O168: 0
B169: 1965 | C169: 0.95 | D169: 0.94 | E169: 0.93 | F169: 0.93 | G169: 0.92 | H169: 0.92 | J169: 1960-06-14 | K169: 0 | L169: 0 | M169: 0 | N169: 0 | O169: 0
B170: 1966 | C170: 0.94 | D170: 0.93 | E170: 0.92 | F170: 0.91 | G170: 0.91 | H170: 0.9 | J170: 1960-06-15 | K170: 0 | L170: 0 | M170: 0 | N170: 0 | O170: 0
B171: 1967 | C171: 0.93 | D171: 0.91 | E171: 0.91 | F171: 0.9 | G171: 0.89 | H171: 0.89 | J171: 1960-06-16 | K171: 0 | L171: 0 | M171: 0 | N171: 0 | O171: 0
B172: 1968 | C172: 0.92 | D172: 0.9 | E172: 0.89 | F172: 0.89 | G172: 0.88 | H172: 0.87 | J172: 1960-06-17 | K172: 0 | L172: 0 | M172: 0 | N172: 0 | O172: 0
B173: 1969 | C173: 0.91 | D173: 0.89 | E173: 0.88 | F173: 0.87 | G173: 0.86 | H173: 0.85 | J173: 1960-06-18 | K173: 0 | L173: 0 | M173: 0 | N173: 0 | O173: 0
B174: 1970 | C174: 0.9 | D174: 0.88 | E174: 0.87 | F174: 0.86 | G174: 0.85 | H174: 0.84 | J174: 1960-06-19 | K174: 0 | L174: 0 | M174: 0 | N174: 0 | O174: 0
B175: 1971 | C175: 0.89 | D175: 0.87 | E175: 0.85 | F175: 0.84 | G175: 0.83 | H175: 0.82 | J175: 1960-06-20 | K175: 0 | L175: 0 | M175: 0 | N175: 0 | O175: 0
B176: 1972 | C176: 0.88 | D176: 0.85 | E176: 0.84 | F176: 0.83 | G176: 0.82 | H176: 0.8 | J176: 1960-06-21 | K176: 0 | L176: 0 | M176: 0 | N176: 0 | O176: 0
B177: 1973 | C177: 0.87 | D177: 0.84 | E177: 0.83 | F177: 0.81 | G177: 0.8 | H177: 0.79 | J177: 1960-06-22 | K177: 0 | L177: 0 | M177: 0 | N177: 0 | O177: 0
B178: 1974 | C178: 0.86 | D178: 0.83 | E178: 0.81 | F178: 0.8 | G178: 0.79 | H178: 0.77 | J178: 1960-06-23 | K178: 0 | L178: 0 | M178: 0 | N178: 0 | O178: 0
B179: 1975 | C179: 0.85 | D179: 0.82 | E179: 0.8 | F179: 0.79 | G179: 0.77 | H179: 0.76 | J179: 1960-06-24 | K179: 0 | L179: 0 | M179: 0 | N179: 0 | O179: 0
B180: 1976 | C180: 0.84 | D180: 0.8 | E180: 0.79 | F180: 0.77 | G180: 0.76 | H180: 0.74 | J180: 1960-06-25 | K180: 0 | L180: 0 | M180: 0 | N180: 0 | O180: 0
B181: 1977 | C181: 0.83 | D181: 0.79 | E181: 0.77 | F181: 0.76 | G181: 0.74 | H181: 0.72 | J181: 1960-06-26 | K181: 0 | L181: 0 | M181: 0 | N181: 0 | O181: 0
B182: 1978 | C182: 0.82 | D182: 0.78 | E182: 0.76 | F182: 0.74 | G182: 0.72 | H182: 0.71 | J182: 1960-06-27 | K182: 0 | L182: 0 | M182: 0 | N182: 0 | O182: 0
B183: 1979 | C183: 0.81 | D183: 0.77 | E183: 0.75 | F183: 0.73 | G183: 0.71 | H183: 0.69 | J183: 1960-06-28 | K183: 0 | L183: 0 | M183: 0 | N183: 0 | O183: 0
B184: 1980 | C184: 0.8 | D184: 0.76 | E184: 0.73 | F184: 0.71 | G184: 0.69 | H184: 0.67 | J184: 1960-06-29 | K184: 0 | L184: 0 | M184: 0 | N184: 0 | O184: 0
B185: 1981 | C185: 0.79 | D185: 0.74 | E185: 0.72 | F185: 0.7 | G185: 0.68 | H185: 0.66 | J185: 1960-06-30 | K185: 0 | L185: 0 | M185: 0 | N185: 0 | O185: 0
B186: 1982 | C186: 0.78 | D186: 0.73 | E186: 0.71 | F186: 0.69 | G186: 0.66 | H186: 0.64 | J186: 1960-07-01 | K186: 0 | L186: 0 | M186: 0 | N186: 0 | O186: 0
B187: 1983 | C187: 0.77 | D187: 0.72 | E187: 0.69 | F187: 0.67 | G187: 0.65 | H187: 0.62 | J187: 1960-07-02 | K187: 0 | L187: 0 | M187: 0 | N187: 0 | O187: 0
B188: 1984 | C188: 0.76 | D188: 0.71 | E188: 0.68 | F188: 0.66 | G188: 0.63 | H188: 0.61 | J188: 1960-07-03 | K188: 0 | L188: 0 | M188: 0 | N188: 0 | O188: 0
B189: 1985 | C189: 0.74 | D189: 0.69 | E189: 0.67 | F189: 0.64 | G189: 0.62 | H189: 0.59 | J189: 1960-07-04 | K189: 0 | L189: 0 | M189: 0 | N189: 0 | O189: 0
B190: 1986 | C190: 0.73 | D190: 0.68 | E190: 0.66 | F190: 0.63 | G190: 0.6 | H190: 0.58 | J190: 1960-07-05 | K190: 0 | L190: 0 | M190: 0 | N190: 0 | O190: 0
B191: 1987 | C191: 0.72 | D191: 0.67 | E191: 0.64 | F191: 0.61 | G191: 0.59 | H191: 0.56 | J191: 1960-07-06 | K191: 0 | L191: 0 | M191: 0 | N191: 0 | O191: 0
B192: 1988 | C192: 0.71 | D192: 0.66 | E192: 0.63 | F192: 0.6 | G192: 0.57 | H192: 0.54 | J192: 1960-07-07 | K192: 0 | L192: 0 | M192: 0 | N192: 0 | O192: 0
B193: 1989 | C193: 0.7 | D193: 0.64 | E193: 0.62 | F193: 0.59 | G193: 0.56 | H193: 0.53 | J193: 1960-07-08 | K193: 0 | L193: 0 | M193: 0 | N193: 0 | O193: 0
B194: 1990 | C194: 0.69 | D194: 0.63 | E194: 0.6 | F194: 0.57 | G194: 0.54 | H194: 0.51 | J194: 1960-07-09 | K194: 0 | L194: 0 | M194: 0 | N194: 0 | O194: 0
B195: 1991 | C195: 0.68 | D195: 0.62 | E195: 0.59 | F195: 0.56 | G195: 0.53 | H195: 0.49 | J195: 1960-07-10 | K195: 0 | L195: 0 | M195: 0 | N195: 0 | O195: 0
B196: 1992 | C196: 0.67 | D196: 0.61 | E196: 0.58 | F196: 0.54 | G196: 0.51 | H196: 0.48 | J196: 1960-07-11 | K196: 0 | L196: 0 | M196: 0 | N196: 0 | O196: 0
B197: 1993 | C197: 0.66 | D197: 0.6 | E197: 0.56 | F197: 0.53 | G197: 0.49 | H197: 0.46 | J197: 1960-07-12 | K197: 0 | L197: 0 | M197: 0 | N197: 0 | O197: 0
B198: 1994 | C198: 0.65 | D198: 0.58 | E198: 0.55 | F198: 0.51 | G198: 0.48 | H198: 0.44 | J198: 1960-07-13 | K198: 0 | L198: 0 | M198: 0 | N198: 0 | O198: 0
B199: 1995 | C199: 0.64 | D199: 0.57 | E199: 0.54 | F199: 0.5 | G199: 0.46 | H199: 0.43 | J199: 1960-07-14 | K199: 0 | L199: 0 | M199: 0 | N199: 0 | O199: 0
B200: 1996 | C200: 0.63 | D200: 0.56 | E200: 0.52 | F200: 0.49 | G200: 0.45 | H200: 0.41 | J200: 1960-07-15 | K200: 0 | L200: 0 | M200: 0 | N200: 0 | O200: 0
B201: 1997 | C201: 0.62 | D201: 0.55 | E201: 0.51 | F201: 0.47 | G201: 0.43 | H201: 0.4 | J201: 1960-07-16 | K201: 0 | L201: 0 | M201: 0 | N201: 0 | O201: 0
... 4299 more rows

Sheet CD
A2: CLIMATE DATA | F2: LAKE EVAPORATION DATA | V2: MONTHLY EVAPOTRANSPIRATION RATES
A3: DATE | B3: TIME | D3: MSC | G3: 1 | H3: 2 | I3: 3 | J3: 4 | K3: 5 | L3: 6 | M3: 7 | N3: 8 | O3: 9 | P3: 10 | Q3: 11 | R3: 12 | S3: MONTH | W3: 1 | X3: 2 | Y3: 3 | Z3: 4 | AA3: 5 | AB3: 6 | AC3: 7 | AD3: 8 | AE3: 9 | AF3: 10 | AG3: 11 | AH3: 12
C4: TEMP. | D4: PRECIPITATION | G4: 31 | H4: 28.25 | I4: 31 | J4: 30 | K4: 31 | L4: 30 | M4: 31 | N4: 31 | O4: 30 | P4: 31 | Q4: 30 | R4: 31 | S4: DAYS | W4: 31 | X4: 28.25 | Y4: 31 | Z4: 30 | AA4: 31 | AB4: 30 | AC4: 31 | AD4: 31 | AE4: 30 | AF4: 31 | AG4: 30 | AH4: 31
C5: (ºc) | D5: (mm) | F5: AVG MONTH | G5: =AVERAGE(G8:G49) -> 2.976190476 | H5: =AVERAGE(H8:H49) -> 10.85714286 | I5: 34.61904762 | J5: 72.14285714 | K5: 112.0238095 | L5: 137.1428571 | M5: 154.7309524 | N5: 124.0714286 | O5: 67.16666667 | P5: 30.57142857 | Q5: 8.071428571 | R5: 2.214285714 | S5: mm | W5: =AVERAGE(W8:W49) -> 4.357142857 | X5: =AVERAGE(X8:X49) -> 11.5 | Y5: 45.83333333 | Z5: 106.8571429 | AA5: 156.8095238 | AB5: 179.5238095 | AC5: 197.2928571 | AD5: 173.4047619 | AE5: 109.1666667 | AF5: 45.64285714 | AG5: 10.73809524 | AH5: 3.666666667
A6: 1960-01-01 | B6: 12:00:00 | C6: -12.8 | D6: 0 | F6: AVG DAILY | G6: =G5/G4 -> 0.09600614439 | H6: =H5/H4 -> 0.384323641 | I6: 1.116743472 | J6: 2.404761905 | K6: 3.613671275 | L6: 4.571428571 | M6: 4.991321045 | N6: 4.002304147 | O6: 2.238888889 | P6: 0.9861751152 | Q6: 0.269047619 | R6: 0.07142857143 | S6: mm | W6: =W5/W4 -> 0.1405529954 | X6: =X5/X4 -> 0.407079646 | Y6: 1.478494624 | Z6: 3.561904762 | AA6: 5.058371736 | AB6: 5.984126984 | AC6: 6.364285714 | AD6: 5.593701997 | AE6: 3.638888889 | AF6: 1.47235023 | AG6: 0.3579365079 | AH6: 0.1182795699
A7: 1960-01-02 | B7: 12:00:00 | C7: -13.6 | D7: 2.5 | F7: YEAR | G7: JAN | H7: FEB | I7: MAR | J7: APR | K7: MAY | L7: JUN | M7: JUL | N7: AUG | O7: SEP | P7: OCT | Q7: NOV | R7: DEC | V7: YEAR | W7: JAN | X7: FEB | Y7: MAR | Z7: APR | AA7: MAY | AB7: JUN | AC7: JUL | AD7: AUG | AE7: SEP | AF7: OCT | AG7: NOV | AH7: DEC
A8: 1960-01-03 | B8: 12:00:00 | C8: -14.2 | D8: 5.6 | F8: 1960 | G8: 1 | H8: 0 | I8: 31 | J8: 74 | K8: 108 | L8: 134 | M8: 176 | N8: 120 | O8: 71 | P8: 29 | Q8: 9 | R8: 4 | V8: 1960 | W8: 1 | X8: 0 | Y8: 35 | Z8: 120 | AA8: 156 | AB8: 181 | AC8: 233 | AD8: 176 | AE8: 120 | AF8: 45 | AG8: 10 | AH8: 4
A9: 1960-01-04 | B9: 12:00:00 | C9: -6.4 | D9: 3.8 | F9: 1961 | G9: 7 | H9: 14 | I9: 31 | J9: 63 | K9: 107 | L9: 176 | M9: 145 | N9: 134 | O9: 57 | P9: 25 | Q9: 10 | R9: -2 | V9: 1961 | W9: 10 | X9: 13 | Y9: 41 | Z9: 92 | AA9: 147 | AB9: 245 | AC9: 201 | AD9: 198 | AE9: 90 | AF9: 34 | AG9: 12 | AH9: -2
A10: 1960-01-05 | B10: 12:00:00 | C10: -3.1 | D10: 0 | F10: 1962 | G10: 2 | H10: -1 | I10: 33 | J10: 77 | K10: 104 | L10: 144 | M10: 149 | N10: 87 | O10: 72 | P10: 30 | Q10: 10 | R10: 3 | V10: 1962 | W10: 3 | X10: -1 | Y10: 36 | Z10: 121 | AA10: 132 | AB10: 197 | AC10: 191 | AD10: 152 | AE10: 119 | AF10: 46 | AG10: 16 | AH10: 3
A11: 1960-01-06 | B11: 12:00:00 | C11: 0.6 | D11: 0 | F11: 1963 | G11: -1 | H11: 9 | I11: 34 | J11: 66 | K11: 118 | L11: 131 | M11: 161 | N11: 137 | O11: 74 | P11: 37 | Q11: 9 | R11: 0 | V11: 1963 | W11: -1 | X11: 9 | Y11: 47 | Z11: 93 | AA11: 160 | AB11: 170 | AC11: 205 | AD11: 184 | AE11: 125 | AF11: 59 | AG11: 9 | AH11: 1
A12: 1960-01-07 | B12: 12:00:00 | C12: -4.7 | D12: 0 | F12: 1964 | G12: 4 | H12: 17 | I12: 27 | J12: 65 | K12: 106 | L12: 124 | M12: 167 | N12: 126 | O12: 49 | P12: 34 | Q12: 5 | R12: -3 | V12: 1964 | W12: 4 | X12: 23 | Y12: 32 | Z12: 101 | AA12: 160 | AB12: 170 | AC12: 228 | AD12: 191 | AE12: 78 | AF12: 55 | AG12: 5 | AH12: -2
A13: 1960-01-08 | B13: 12:00:00 | C13: -13.4 | D13: 0.5 | F13: 1965 | G13: -1 | H13: 3 | I13: 13 | J13: 64 | K13: 98 | L13: 111 | M13: 161 | N13: 123 | O13: 43 | P13: 35 | Q13: 2 | R13: -3 | V13: 1965 | W13: -1 | X13: 4 | Y13: 12 | Z13: 84 | AA13: 140 | AB13: 146 | AC13: 193 | AD13: 161 | AE13: 61 | AF13: 57 | AG13: 2 | AH13: -2
A14: 1960-01-09 | B14: 12:00:00 | C14: -11.1 | D14: 0 | F14: 1966 | G14: -2 | H14: 5 | I14: 39 | J14: 59 | K14: 120 | L14: 131 | M14: 151 | N14: 113 | O14: 76 | P14: 27 | Q14: -1 | R14: -4 | V14: 1966 | W14: -2 | X14: 5 | Y14: 55 | Z14: 76 | AA14: 169 | AB14: 163 | AC14: 184 | AD14: 148 | AE14: 127 | AF14: 40 | AG14: -1 | AH14: -4
A15: 1960-01-10 | B15: 12:00:00 | C15: -4.5 | D15: 0 | F15: 1967 | G15: -3 | H15: 12 | I15: 7 | J15: 53 | K15: 100 | L15: 145 | M15: 170 | N15: 142 | O15: 86 | P15: 28 | Q15: 9 | R15: 0 | V15: 1967 | W15: -3 | X15: 11 | Y15: 7 | Z15: 58 | AA15: 136 | AB15: 172 | AC15: 222 | AD15: 206 | AE15: 151 | AF15: 42 | AG15: 13 | AH15: 1
A16: 1960-01-11 | B16: 12:00:00 | C16: -5 | D16: 0 | F16: 1968 | G16: -2 | H16: 16 | I16: 37 | J16: 66 | K16: 108 | L16: 114 | M16: 153 | N16: 92 | O16: 62 | P16: 29 | Q16: 10 | R16: -1 | V16: 1968 | W16: -1 | X16: 14 | Y16: 53 | Z16: 99 | AA16: 149 | AB16: 152 | AC16: 198 | AD16: 130 | AE16: 100 | AF16: 43 | AG16: 13 | AH16: -1
A17: 1960-01-12 | B17: 12:00:00 | C17: -12.2 | D17: 0 | F17: 1969 | G17: 0 | H17: -1 | I17: 35 | J17: 72 | K17: 113 | L17: 122 | M17: 154.7 | N17: 149 | O17: 62 | P17: 27 | Q17: 12 | R17: 4 | V17: 1969 | W17: 0 | X17: -1 | Y17: 37 | Z17: 115 | AA17: 170 | AB17: 172 | AC17: =197.3 -> 197.3 | AD17: 208 | AE17: 100 | AF17: 34 | AG17: 23 | AH17: 5
A18: 1960-01-13 | B18: 12:00:00 | C18: -12.8 | D18: 0 | F18: 1970 | G18: -1 | H18: 15 | I18: 35 | J18: 78 | K18: 114 | L18: 149 | M18: 167 | N18: 146 | O18: 71 | P18: 32 | Q18: 4 | R18: -1 | V18: 1970 | W18: 0 | X18: 15 | Y18: 40 | Z18: 98 | AA18: 160 | AB18: 199 | AC18: 208 | AD18: 215 | AE18: 120 | AF18: 50 | AG18: 4 | AH18: 0
A19: 1960-01-14 | B19: 12:00:00 | C19: -5.8 | D19: 0 | F19: 1971 | G19: 1 | H19: 14 | I19: 38 | J19: 77 | K19: 134 | L19: 143 | M19: 171 | N19: 150 | O19: 65 | P19: 32 | Q19: 9 | R19: -2 | V19: 1971 | W19: 1 | X19: 11 | Y19: 43 | Z19: 105 | AA19: 186 | AB19: 180 | AC19: 211 | AD19: 230 | AE19: 106 | AF19: 47 | AG19: 10 | AH19: -1
A20: 1960-01-15 | B20: 12:00:00 | C20: -2.8 | D20: 0 | F20: 1972 | G20: 0 | H20: 0 | I20: 35 | J20: 78 | K20: 131 | L20: 137 | M20: 117 | N20: 138 | O20: 62 | P20: 26 | Q20: 10 | R20: -2 | V20: 1972 | W20: 0 | X20: 0 | Y20: 45 | Z20: 119 | AA20: 171 | AB20: 184 | AC20: 148 | AD20: 177 | AE20: 86 | AF20: 35 | AG20: 10 | AH20: -2
A21: 1960-01-16 | B21: 12:00:00 | C21: -7.8 | D21: 0 | F21: 1973 | G21: 7 | H21: 15 | I21: 43 | J21: 63 | K21: 130 | L21: 149 | M21: 177 | N21: 127 | O21: 67 | P21: 32 | Q21: -2 | R21: 0 | V21: 1973 | W21: 7 | X21: 14 | Y21: 60 | Z21: 81 | AA21: 193 | AB21: 198 | AC21: 236 | AD21: 176 | AE21: 106 | AF21: 47 | AG21: -2 | AH21: 0
A22: 1960-01-17 | B22: 12:00:00 | C22: -11.4 | D22: 0 | F22: 1974 | G22: 0 | H22: 15 | I22: 29 | J22: 78 | K22: 93 | L22: 174 | M22: 164 | N22: 98 | O22: 66 | P22: 35 | Q22: 10 | R22: 5 | V22: 1974 | W22: 0 | X22: 13 | Y22: 31 | Z22: 109 | AA22: 118 | AB22: 231 | AC22: 225 | AD22: 139 | AE22: 108 | AF22: 57 | AG22: 15 | AH22: 9
A23: 1960-01-18 | B23: 12:00:00 | C23: -14.2 | D23: 0 | F23: 1975 | G23: 7 | H23: 0 | I23: 29 | J23: 63 | K23: 108 | L23: 137 | M23: 163 | N23: 118 | O23: 83 | P23: 30 | Q23: 10 | R23: 4 | V23: 1975 | W23: 8 | X23: 1 | Y23: 34 | Z23: 75 | AA23: 143 | AB23: 182 | AC23: 214 | AD23: 169 | AE23: 139 | AF23: 44 | AG23: 14 | AH23: 5
A24: 1960-01-19 | B24: 12:00:00 | C24: -12.8 | D24: 0 | F24: 1976 | G24: 8 | H24: 15 | I24: 35 | J24: 79 | K24: 137 | L24: 128 | M24: 158 | N24: 128 | O24: 79 | P24: 29 | Q24: 12 | R24: 5 | V24: 1976 | W24: 9 | X24: 16 | Y24: 48 | Z24: 126 | AA24: 200 | AB24: 166 | AC24: 221 | AD24: 179 | AE24: 132 | AF24: 41 | AG24: 20 | AH24: 5
A25: 1960-01-20 | B25: 12:00:00 | C25: -12.5 | D25: 0 | F25: 1977 | G25: 1 | H25: 19 | I25: 38 | J25: 98 | K25: 111 | L25: 176 | M25: 150 | N25: 104 | O25: 53 | P25: 35 | Q25: 11 | R25: -2 | V25: 1977 | W25: 2 | X25: 27 | Y25: 56 | Z25: 163 | AA25: 151 | AB25: 270 | AC25: 201 | AD25: 129 | AE25: 80 | AF25: 53 | AG25: 12 | AH25: -1
A26: 1960-01-21 | B26: 12:00:00 | C26: -15.3 | D26: 0 | F26: 1978 | G26: -1 | H26: -2 | I26: 33 | J26: 48 | K26: 107 | L26: 156 | M26: 144 | N26: 122 | O26: 60 | P26: 37 | Q26: 8 | R26: 2 | V26: 1978 | W26: -1 | X26: -1 | Y26: 42 | Z26: 66 | AA26: 144 | AB26: 186 | AC26: 179 | AD26: 163 | AE26: 94 | AF26: 58 | AG26: 8 | AH26: 3
A27: 1960-01-22 | B27: 12:00:00 | C27: -18.7 | D27: 0 | F27: 1979 | G27: 0 | H27: -1 | I27: 41 | J27: 54 | K27: 102 | L27: 148 | M27: 167 | N27: 128 | O27: 79 | P27: 29 | Q27: 10 | R27: 5 | V27: 1979 | W27: 0 | X27: -1 | Y27: 60 | Z27: 71 | AA27: 143 | AB27: 207 | AC27: 232 | AD27: 173 | AE27: 135 | AF27: 43 | AG27: 17 | AH27: 6
A28: 1960-01-23 | B28: 12:00:00 | C28: -11.7 | D28: 0 | F28: 1980 | G28: 0 | H28: 12 | I28: 34 | J28: 94 | K28: 128 | L28: 127 | M28: 167 | N28: 106 | O28: 62 | P28: 34 | Q28: 12 | R28: 3 | V28: 1980 | W28: 1 | X28: 10 | Y28: 40 | Z28: 148 | AA28: 193 | AB28: 151 | AC28: 213 | AD28: 143 | AE28: 103 | AF28: 54 | AG28: 22 | AH28: 4
A29: 1960-01-24 | B29: 12:00:00 | C29: -9.7 | D29: 4.1 | F29: 1981 | G29: 7 | H29: 16 | I29: 43 | J29: 83 | K29: 95 | L29: 138 | M29: 135 | N29: 142 | O29: 75 | P29: 27 | Q29: 11 | R29: 6 | V29: 1981 | W29: 10 | X29: 18 | Y29: 60 | Z29: 142 | AA29: 127 | AB29: 183 | AC29: 167 | AD29: 195 | AE29: 126 | AF29: 38 | AG29: 21 | AH29: 7
A30: 1960-01-25 | B30: 12:00:00 | C30: -14.5 | D30: 3.3 | F30: 1982 | G30: 0 | H30: 6 | I30: 32 | J30: 79 | K30: 120 | L30: 133 | M30: 145 | N30: 123 | O30: 65 | P30: 33 | Q30: 8 | R30: 5 | V30: 1982 | W30: 1 | X30: 6 | Y30: 39 | Z30: 118 | AA30: 166 | AB30: 168 | AC30: 182 | AD30: 168 | AE30: 107 | AF30: 52 | AG30: 9 | AH30: 6
A31: 1960-01-26 | B31: 12:00:00 | C31: -16.1 | D31: 0 | F31: 1983 | G31: 6 | H31: 13 | I31: 27 | J31: 71 | K31: 119 | L31: 126 | M31: 153 | N31: 138 | O31: 65 | P31: 28 | Q31: 9 | R31: 0 | V31: 1983 | W31: 6 | X31: 13 | Y31: 32 | Z31: 105 | AA31: 176 | AB31: 177 | AC31: 210 | AD31: 224 | AE31: 110 | AF31: 44 | AG31: 11 | AH31: 0
A32: 1960-01-27 | B32: 12:00:00 | C32: -14.8 | D32: 0 | F32: 1984 | G32: 7 | H32: 19 | I32: 30 | J32: 74 | K32: 92 | L32: 138 | M32: 174 | N32: 134 | O32: 52 | P32: 23 | Q32: 7 | R32: 2 | V32: 1984 | W32: 12 | X32: 30 | Y32: 41 | Z32: 124 | AA32: 149 | AB32: 196 | AC32: 253 | AD32: 231 | AE32: 82 | AF32: 31 | AG32: 7 | AH32: 3
A33: 1960-01-28 | B33: 12:00:00 | C33: -7.5 | D33: 0 | F33: 1985 | G33: 8 | H33: 14 | I33: 46 | J33: 72 | K33: 128 | L33: 154 | M33: 172 | N33: 102 | O33: 44 | P33: 26 | Q33: 2 | R33: 3 | V33: 1985 | W33: 9 | X33: 13 | Y33: 69 | Z33: 112 | AA33: 201 | AB33: 206 | AC33: 247 | AD33: 151 | AE33: 68 | AF33: 38 | AG33: 3 | AH33: 3
A34: 1960-01-29 | B34: 12:00:00 | C34: 0.8 | D34: 0 | F34: 1986 | G34: 7 | H34: 13 | I34: 41 | J34: 72 | K34: 113 | L34: 147 | M34: 139 | N34: 136 | O34: 43 | P34: 35 | Q34: -2 | R34: 5 | V34: 1986 | W34: 15 | X34: 11 | Y34: 63 | Z34: 113 | AA34: 160 | AB34: 203 | AC34: 166 | AD34: 193 | AE34: 60 | AF34: 54 | AG34: -2 | AH34: 9
A35: 1960-01-30 | B35: 12:00:00 | C35: 1.4 | D35: 0 | F35: 1987 | G35: 8 | H35: 16 | I35: 27 | J35: 85 | K35: 137 | L35: 162 | M35: 137 | N35: 109 | O35: 82 | P35: 35 | Q35: 11 | R35: 6 | V35: 1987 | W35: 17 | X35: 20 | Y35: 33 | Z35: 141 | AA35: 202 | AB35: 239 | AC35: 165 | AD35: 136 | AE35: 141 | AF35: 58 | AG35: 18 | AH35: 11
A36: 1960-01-31 | B36: 12:00:00 | C36: -3.6 | D36: 0 | F36: 1988 | G36: 7 | H36: 14 | I36: 41 | J36: 93 | K36: 132 | L36: 140 | M36: 153 | N36: 119 | O36: 63 | P36: 33 | Q36: 9 | R36: 6 | V36: 1988 | W36: 8 | X36: 18 | Y36: 61 | Z36: 156 | AA36: 217 | AB36: 198 | AC36: 216 | AD36: 158 | AE36: 102 | AF36: 49 | AG36: 15 | AH36: 7
A37: 1960-02-01 | B37: 12:00:00 | C37: -1.7 | D37: 0 | F37: 1989 | G37: 7 | H37: 6 | I37: 33 | J37: 75 | K37: 109 | L37: 144 | M37: 162 | N37: 93 | O37: 75 | P37: 31 | Q37: 10 | R37: 5 | V37: 1989 | W37: 7 | X37: 6 | Y37: 37 | Z37: 114 | AA37: 149 | AB37: 179 | AC37: 204 | AD37: 127 | AE37: 120 | AF37: 47 | AG37: 15 | AH37: 7
A38: 1960-02-02 | B38: 12:00:00 | C38: -7 | D38: 0 | F38: 1990 | G38: 7 | H38: 15 | I38: 46 | J38: 70 | K38: 85 | L38: 129 | M38: 135 | N38: 128 | O38: 87 | P38: 28 | Q38: 8 | R38: 2 | V38: 1990 | W38: 9 | X38: 14 | Y38: 70 | Z38: 104 | AA38: 119 | AB38: 176 | AC38: 175 | AD38: 177 | AE38: 150 | AF38: 44 | AG38: 9 | AH38: 3
A39: 1960-02-03 | B39: 12:00:00 | C39: -2 | D39: 0.8 | F39: 1991 | G39: 6 | H39: 14 | I39: 37 | J39: 81 | K39: 99 | L39: 121 | M39: 167 | N39: 131 | O39: 71 | P39: 30 | Q39: 9 | R39: 5 | V39: 1991 | W39: 6 | X39: 17 | Y39: 49 | Z39: 123 | AA39: 130 | AB39: 157 | AC39: 210 | AD39: 193 | AE39: 118 | AF39: 42 | AG39: 9 | AH39: 11
A40: 1960-02-04 | B40: 12:00:00 | C40: -3.6 | D40: 0 | F40: 1992 | G40: 7 | H40: 15 | I40: 47 | J40: 70 | K40: 104 | L40: 127 | M40: 128 | N40: 120 | O40: 56 | P40: 26 | Q40: 7 | R40: 1 | V40: 1992 | W40: 13 | X40: 17 | Y40: 74 | Z40: 116 | AA40: 155 | AB40: 164 | AC40: 149 | AD40: 162 | AE40: 91 | AF40: 37 | AG40: 7 | AH40: 1
A41: 1960-02-05 | B41: 12:00:00 | C41: -5.8 | D41: 0 | F41: 1993 | G41: -1 | H41: 16 | I41: 32 | J41: 69 | K41: 112 | L41: 126 | M41: 117 | N41: 108 | O41: 70 | P41: 33 | Q41: 10 | R41: 4 | V41: 1993 | W41: -1 | X41: 13 | Y41: 43 | Z41: 101 | AA41: 158 | AB41: 161 | AC41: 140 | AD41: 132 | AE41: 114 | AF41: 49 | AG41: 11 | AH41: 7
A42: 1960-02-06 | B42: 12:00:00 | C42: -2.5 | D42: 0 | F42: 1994 | G42: -2 | H42: 2 | I42: 49 | J42: 77 | K42: 114 | L42: 139 | M42: 159 | N42: 120 | O42: 79 | P42: 29 | Q42: 9 | R42: 3 | V42: 1994 | W42: -1 | X42: 2 | Y42: 76 | Z42: 119 | AA42: 158 | AB42: 175 | AC42: 208 | AD42: 173 | AE42: 134 | AF42: 40 | AG42: 10 | AH42: 4
A43: 1960-02-07 | B43: 12:00:00 | C43: 0.9 | D43: 0 | F43: 1995 | G43: 1 | H43: 15 | I43: 38 | J43: 60 | K43: 108 | L43: 131 | M43: 135 | N43: 119 | O43: 73 | P43: 29 | Q43: 9 | R43: 1 | V43: 1995 | W43: 5 | X43: 16 | Y43: 53 | Z43: 84 | AA43: 134 | AB43: 162 | AC43: 153 | AD43: 144 | AE43: 113 | AF43: 41 | AG43: 6 | AH43: 4
A44: 1960-02-08 | B44: 12:00:00 | C44: -6.7 | D44: 7.1 | F44: 1996 | G44: 2 | H44: 16 | I44: 30 | J44: 60 | K44: 75 | L44: 135 | M44: 163 | N44: 143 | O44: 51 | P44: 30 | Q44: 4 | R44: 2 | V44: 1996 | W44: 3 | X44: 15 | Y44: 34 | Z44: 86 | AA44: 81 | AB44: 163 | AC44: 186 | AD44: 192 | AE44: 77 | AF44: 42 | AG44: 4 | AH44: 3
A45: 1960-02-09 | B45: 12:00:00 | C45: -8.1 | D45: 4.1 | F45: 1997 | G45: 2 | H45: 14 | I45: 33 | J45: 73 | K45: 104 | L45: 132 | M45: 168 | N45: 122 | O45: 79 | P45: 27 | Q45: 9 | R45: 6 | V45: 1997 | W45: 3 | X45: 14 | Y45: 43 | Z45: 101 | AA45: 140 | AB45: 154 | AC45: 191 | AD45: 157 | AE45: 121 | AF45: 37 | AG45: 12 | AH45: 11
A46: 1960-02-10 | B46: 12:00:00 | C46: -15 | D46: 0.3 | F46: 1998 | G46: 2 | H46: 16 | I46: 29 | J46: 77 | K46: 132 | L46: 111 | M46: 153 | N46: 143 | O46: 74 | P46: 31 | Q46: 8 | R46: 5 | V46: 1998 | W46: 2 | X46: 15 | Y46: 31 | Z46: 97 | AA46: 161 | AB46: 119 | AC46: 165 | AD46: 194 | AE46: 116 | AF46: 45 | AG46: 9 | AH46: 6
A47: 1960-02-11 | B47: 12:00:00 | C47: -10.3 | D47: 0 | F47: 1999 | G47: 5 | H47: 17 | I47: 36 | J47: 66 | K47: 111 | L47: 116 | M47: 135 | N47: 113 | O47: 70 | P47: 32 | Q47: 11 | R47: 6 | V47: 1999 | W47: 5 | X47: 22 | Y47: 49 | Z47: 100 | AA47: 145 | AB47: 139 | AC47: 158 | AD47: 133 | AE47: 110 | AF47: 49 | AG47: 17 | AH47: 14
A48: 1960-02-12 | B48: 12:00:00 | C48: -2.2 | D48: 0 | F48: 2000 | G48: 5 | H48: 16 | I48: 36 | J48: 74 | K48: 111 | L48: 133 | M48: 173 | N48: 133 | O48: 69 | P48: 34 | Q48: 10 | R48: 1 | V48: 2000 | W48: 5 | X48: 14 | Y48: 50 | Z48: 103 | AA48: 142 | AB48: 152 | AC48: 200 | AD48: 178 | AE48: 114 | AF48: 49 | AG48: 11 | AH48: 1
A49: 1960-02-13 | B49: 12:00:00 | C49: -2.2 | D49: 0 | F49: 2001 | G49: 7 | H49: 7 | I49: 44 | J49: 80 | K49: 128 | L49: 122 | M49: 163 | N49: 147 | O49: 79 | P49: 32 | Q49: 11 | R49: 4 | V49: 2001 | W49: 12 | X49: 7 | Y49: 64 | Z49: 109 | AA49: 195 | AB49: 147 | AC49: 201 | AD49: 218 | AE49: 131 | AF49: 47 | AG49: 17 | AH49: 5
A50: 1960-02-14 | B50: 12:00:00 | C50: -1.1 | D50: 0 | F50: 2002 | G50: =G$5 -> 2.976190476 | H50: =H$5 -> 10.85714286 | I50: 34.61904762 | J50: 72.14285714 | K50: 112.0238095 | L50: 137.1428571 | M50: 154.7309524 | N50: 124.0714286 | O50: 67.16666667 | P50: 30.57142857 | Q50: 8.071428571 | R50: 2.214285714 | V50: 2002 | W50: =W$5 -> 4.357142857 | X50: 11.5 | Y50: 45.83333333 | Z50: 106.8571429 | AA50: 156.8095238 | AB50: 179.5238095 | AC50: 197.2928571 | AD50: 173.4047619 | AE50: 109.1666667 | AF50: 45.64285714 | AG50: 10.73809524 | AH50: 3.666666667
A51: 1960-02-15 | B51: 12:00:00 | C51: -0.6 | D51: 0 | F51: 2003 | G51: =G$5 -> 2.976190476 | H51: 10.85714286 | I51: 34.61904762 | J51: 72.14285714 | K51: 112.0238095 | L51: 137.1428571 | M51: 154.7309524 | N51: 124.0714286 | O51: 67.16666667 | P51: 30.57142857 | Q51: 8.071428571 | R51: 2.214285714 | V51: 2003 | W51: 4.357142857 | X51: 11.5 | Y51: 45.83333333 | Z51: 106.8571429 | AA51: 156.8095238 | AB51: 179.5238095 | AC51: 197.2928571 | AD51: 173.4047619 | AE51: 109.1666667 | AF51: 45.64285714 | AG51: 10.73809524 | AH51: 3.666666667
A52: 1960-02-16 | B52: 12:00:00 | C52: -2.2 | D52: 0.3 | F52: 2004 | G52: 2.976190476 | H52: 10.85714286 | I52: 34.61904762 | J52: 72.14285714 | K52: 112.0238095 | L52: 137.1428571 | M52: 154.7309524 | N52: 124.0714286 | O52: 67.16666667 | P52: 30.57142857 | Q52: 8.071428571 | R52: 2.214285714 | V52: 2004 | W52: 4.357142857 | X52: 11.5 | Y52: 45.83333333 | Z52: 106.8571429 | AA52: 156.8095238 | AB52: 179.5238095 | AC52: 197.2928571 | AD52: 173.4047619 | AE52: 109.1666667 | AF52: 45.64285714 | AG52: 10.73809524 | AH52: 3.666666667
A53: 1960-02-17 | B53: 12:00:00 | C53: -8.4 | D53: 1 | F53: 2005 | G53: 2.976190476 | H53: 10.85714286 | I53: 34.61904762 | J53: 72.14285714 | K53: 112.0238095 | L53: 137.1428571 | M53: 154.7309524 | N53: 124.0714286 | O53: 67.16666667 | P53: 30.57142857 | Q53: 8.071428571 | R53: 2.214285714 | V53: 2005 | W53: 4.357142857 | X53: 11.5 | Y53: 45.83333333 | Z53: 106.8571429 | AA53: 156.8095238 | AB53: 179.5238095 | AC53: 197.2928571 | AD53: 173.4047619 | AE53: 109.1666667 | AF53: 45.64285714 | AG53: 10.73809524 | AH53: 3.666666667
A54: 1960-02-18 | B54: 12:00:00 | C54: -13.1 | D54: 0 | F54: 2006 | G54: 2.976190476 | H54: 10.85714286 | I54: 34.61904762 | J54: 72.14285714 | K54: 112.0238095 | L54: 137.1428571 | M54: 154.7309524 | N54: 124.0714286 | O54: 67.16666667 | P54: 30.57142857 | Q54: 8.071428571 | R54: 2.214285714 | V54: 2006 | W54: 4.357142857 | X54: 11.5 | Y54: 45.83333333 | Z54: 106.8571429 | AA54: 156.8095238 | AB54: 179.5238095 | AC54: 197.2928571 | AD54: 173.4047619 | AE54: 109.1666667 | AF54: 45.64285714 | AG54: 10.73809524 | AH54: 3.666666667
A55: 1960-02-19 | B55: 12:00:00 | C55: -11.4 | D55: 1.3 | F55: 2007 | G55: 2.976190476 | H55: 10.85714286 | I55: 34.61904762 | J55: 72.14285714 | K55: 112.0238095 | L55: 137.1428571 | M55: 154.7309524 | N55: 124.0714286 | O55: 67.16666667 | P55: 30.57142857 | Q55: 8.071428571 | R55: 2.214285714 | V55: 2007 | W55: 4.357142857 | X55: 11.5 | Y55: 45.83333333 | Z55: 106.8571429 | AA55: 156.8095238 | AB55: 179.5238095 | AC55: 197.2928571 | AD55: 173.4047619 | AE55: 109.1666667 | AF55: 45.64285714 | AG55: 10.73809524 | AH55: 3.666666667
A56: 1960-02-20 | B56: 12:00:00 | C56: -5.3 | D56: 0 | F56: 2008 | G56: 2.976190476 | H56: 10.85714286 | I56: 34.61904762 | J56: 72.14285714 | K56: 112.0238095 | L56: 137.1428571 | M56: 154.7309524 | N56: 124.0714286 | O56: 67.16666667 | P56: 30.57142857 | Q56: 8.071428571 | R56: 2.214285714 | V56: 2008 | W56: 4.357142857 | X56: 11.5 | Y56: 45.83333333 | Z56: 106.8571429 | AA56: 156.8095238 | AB56: 179.5238095 | AC56: 197.2928571 | AD56: 173.4047619 | AE56: 109.1666667 | AF56: 45.64285714 | AG56: 10.73809524 | AH56: 3.666666667
A57: 1960-02-21 | B57: 12:00:00 | C57: -6.4 | D57: 0 | F57: 2009 | G57: 2.976190476 | H57: 10.85714286 | I57: 34.61904762 | J57: 72.14285714 | K57: 112.0238095 | L57: 137.1428571 | M57: 154.7309524 | N57: 124.0714286 | O57: 67.16666667 | P57: 30.57142857 | Q57: 8.071428571 | R57: 2.214285714 | V57: 2009 | W57: 4.357142857 | X57: 11.5 | Y57: 45.83333333 | Z57: 106.8571429 | AA57: 156.8095238 | AB57: 179.5238095 | AC57: 197.2928571 | AD57: 173.4047619 | AE57: 109.1666667 | AF57: 45.64285714 | AG57: 10.73809524 | AH57: 3.666666667
A58: 1960-02-22 | B58: 12:00:00 | C58: -8.4 | D58: 4.3 | F58: 2010 | G58: 2.976190476 | H58: 10.85714286 | I58: 34.61904762 | J58: 72.14285714 | K58: 112.0238095 | L58: 137.1428571 | M58: 154.7309524 | N58: 124.0714286 | O58: 67.16666667 | P58: 30.57142857 | Q58: 8.071428571 | R58: 2.214285714 | V58: 2010 | W58: 4.357142857 | X58: 11.5 | Y58: 45.83333333 | Z58: 106.8571429 | AA58: 156.8095238 | AB58: 179.5238095 | AC58: 197.2928571 | AD58: 173.4047619 | AE58: 109.1666667 | AF58: 45.64285714 | AG58: 10.73809524 | AH58: 3.666666667
A59: 1960-02-23 | B59: 12:00:00 | C59: -17.3 | D59: 0
A60: 1960-02-24 | B60: 12:00:00 | C60: -11.9 | D60: 8.4
A61: 1960-02-25 | B61: 12:00:00 | C61: -15.6 | D61: 1.8
A62: 1960-02-26 | B62: 12:00:00 | C62: -17.3 | D62: 0
A63: 1960-02-27 | B63: 12:00:00 | C63: -19.2 | D63: 0.8
A64: 1960-02-28 | B64: 12:00:00 | C64: -11.4 | D64: 1
A65: 1960-02-29 | B65: 12:00:00 | C65: -19.5 | D65: 0.3
A66: 1960-03-01 | B66: 12:00:00 | C66: -25.6 | D66: 0
A67: 1960-03-02 | B67: 12:00:00 | C67: -25.6 | D67: 0
A68: 1960-03-03 | B68: 12:00:00 | C68: -19.2 | D68: 0
A69: 1960-03-04 | B69: 12:00:00 | C69: -18.7 | D69: 0.5
A70: 1960-03-05 | B70: 12:00:00 | C70: -20.3 | D70: 0.3
A71: 1960-03-06 | B71: 12:00:00 | C71: -8.6 | D71: 0
A72: 1960-03-07 | B72: 12:00:00 | C72: -12 | D72: 0
A73: 1960-03-08 | B73: 12:00:00 | C73: -7.8 | D73: 2.3
A74: 1960-03-09 | B74: 12:00:00 | C74: -11.1 | D74: 0.8
A75: 1960-03-10 | B75: 12:00:00 | C75: -12.8 | D75: 0.3
A76: 1960-03-11 | B76: 12:00:00 | C76: -16.2 | D76: 0.5
A77: 1960-03-12 | B77: 12:00:00 | C77: -15.8 | D77: 0
A78: 1960-03-13 | B78: 12:00:00 | C78: -9.5 | D78: 0
A79: 1960-03-14 | B79: 12:00:00 | C79: -3.9 | D79: 0
A80: 1960-03-15 | B80: 12:00:00 | C80: -2 | D80: 0.3
A81: 1960-03-16 | B81: 12:00:00 | C81: -1.1 | D81: 0
A82: 1960-03-17 | B82: 12:00:00 | C82: 6.1 | D82: 0
A83: 1960-03-18 | B83: 12:00:00 | C83: 5.3 | D83: 0
A84: 1960-03-19 | B84: 12:00:00 | C84: 6.4 | D84: 0
A85: 1960-03-20 | B85: 12:00:00 | C85: 7.8 | D85: 0
A86: 1960-03-21 | B86: 12:00:00 | C86: -2.2 | D86: 0
A87: 1960-03-22 | B87: 12:00:00 | C87: 2 | D87: 0
A88: 1960-03-23 | B88: 12:00:00 | C88: 0.9 | D88: 0
A89: 1960-03-24 | B89: 12:00:00 | C89: 4.5 | D89: 0
A90: 1960-03-25 | B90: 12:00:00 | C90: 4.8 | D90: 0
A91: 1960-03-26 | B91: 12:00:00 | C91: 8.1 | D91: 0.5
A92: 1960-03-27 | B92: 12:00:00 | C92: 3.3 | D92: 0
A93: 1960-03-28 | B93: 12:00:00 | C93: -2 | D93: 0.5
A94: 1960-03-29 | B94: 12:00:00 | C94: 3.9 | D94: 0
A95: 1960-03-30 | B95: 12:00:00 | C95: 4.2 | D95: 0
A96: 1960-03-31 | B96: 12:00:00 | C96: 2.2 | D96: 0
A97: 1960-04-01 | B97: 12:00:00 | C97: 5 | D97: 0
A98: 1960-04-02 | B98: 12:00:00 | C98: 7 | D98: 0
A99: 1960-04-03 | B99: 12:00:00 | C99: 7.8 | D99: 0
A100: 1960-04-04 | B100: 12:00:00 | C100: 9.7 | D100: 0
A101: 1960-04-05 | B101: 12:00:00 | C101: 8.9 | D101: 0
A102: 1960-04-06 | B102: 12:00:00 | C102: 5.3 | D102: 0
A103: 1960-04-07 | B103: 12:00:00 | C103: 4.7 | D103: 0
A104: 1960-04-08 | B104: 12:00:00 | C104: 8.3 | D104: 0
A105: 1960-04-09 | B105: 12:00:00 | C105: 10.8 | D105: 0
A106: 1960-04-10 | B106: 12:00:00 | C106: 6.4 | D106: 0
A107: 1960-04-11 | B107: 12:00:00 | C107: 6.1 | D107: 0
A108: 1960-04-12 | B108: 12:00:00 | C108: 6.1 | D108: 0
A109: 1960-04-13 | B109: 12:00:00 | C109: 5 | D109: 0
A110: 1960-04-14 | B110: 12:00:00 | C110: 4.5 | D110: 0
A111: 1960-04-15 | B111: 12:00:00 | C111: 4.7 | D111: 1
A112: 1960-04-16 | B112: 12:00:00 | C112: 3.1 | D112: 0
A113: 1960-04-17 | B113: 12:00:00 | C113: 5.3 | D113: 0
A114: 1960-04-18 | B114: 12:00:00 | C114: 4.7 | D114: 0
A115: 1960-04-19 | B115: 12:00:00 | C115: 7 | D115: 0
A116: 1960-04-20 | B116: 12:00:00 | C116: 6.4 | D116: 0
A117: 1960-04-21 | B117: 12:00:00 | C117: 5 | D117: 6.1
A118: 1960-04-22 | B118: 12:00:00 | C118: 3.4 | D118: 0.5
A119: 1960-04-23 | B119: 12:00:00 | C119: 0.8 | D119: 4.6
A120: 1960-04-24 | B120: 12:00:00 | C120: -2.8 | D120: 14
A121: 1960-04-25 | B121: 12:00:00 | C121: -3.4 | D121: 4.1
A122: 1960-04-26 | B122: 12:00:00 | C122: -4.5 | D122: 0
A123: 1960-04-27 | B123: 12:00:00 | C123: -4.7 | D123: 0
A124: 1960-04-28 | B124: 12:00:00 | C124: 1.4 | D124: 0
A125: 1960-04-29 | B125: 12:00:00 | C125: 4.5 | D125: 0
A126: 1960-04-30 | B126: 12:00:00 | C126: 9.8 | D126: 0
A127: 1960-05-01 | B127: 12:00:00 | C127: 7.8 | D127: 9.1
A128: 1960-05-02 | B128: 12:00:00 | C128: 3.9 | D128: 1
A129: 1960-05-03 | B129: 12:00:00 | C129: 4.5 | D129: 0
A130: 1960-05-04 | B130: 12:00:00 | C130: 1.7 | D130: 0
A131: 1960-05-05 | B131: 12:00:00 | C131: 5.3 | D131: 0
A132: 1960-05-06 | B132: 12:00:00 | C132: 8.4 | D132: 0
A133: 1960-05-07 | B133: 12:00:00 | C133: 10.9 | D133: 0.3
A134: 1960-05-08 | B134: 12:00:00 | C134: 7.8 | D134: 1
A135: 1960-05-09 | B135: 12:00:00 | C135: 9.8 | D135: 0
A136: 1960-05-10 | B136: 12:00:00 | C136: 15.3 | D136: 0
A137: 1960-05-11 | B137: 12:00:00 | C137: 18.6 | D137: 0
A138: 1960-05-12 | B138: 12:00:00 | C138: 17.2 | D138: 2.3
A139: 1960-05-13 | B139: 12:00:00 | C139: 9.7 | D139: 0
A140: 1960-05-14 | B140: 12:00:00 | C140: 6.7 | D140: 4.1
A141: 1960-05-15 | B141: 12:00:00 | C141: 8.1 | D141: 0
A142: 1960-05-16 | B142: 12:00:00 | C142: 6.1 | D142: 5.1
A143: 1960-05-17 | B143: 12:00:00 | C143: 3.7 | D143: 19.6
A144: 1960-05-18 | B144: 12:00:00 | C144: 4.5 | D144: 0.8
A145: 1960-05-19 | B145: 12:00:00 | C145: 6.7 | D145: 0
A146: 1960-05-20 | B146: 12:00:00 | C146: 10.3 | D146: 0.5
A147: 1960-05-21 | B147: 12:00:00 | C147: 10 | D147: 0.3
A148: 1960-05-22 | B148: 12:00:00 | C148: 6.2 | D148: 0
A149: 1960-05-23 | B149: 12:00:00 | C149: 4.8 | D149: 1.3
A150: 1960-05-24 | B150: 12:00:00 | C150: 5 | D150: 7.4
A151: 1960-05-25 | B151: 12:00:00 | C151: 7.5 | D151: 0
A152: 1960-05-26 | B152: 12:00:00 | C152: 11.9 | D152: 0.3
A153: 1960-05-27 | B153: 12:00:00 | C153: 12 | D153: 0
A154: 1960-05-28 | B154: 12:00:00 | C154: 11.4 | D154: 0
A155: 1960-05-29 | B155: 12:00:00 | C155: 12 | D155: 0
A156: 1960-05-30 | B156: 12:00:00 | C156: 16.1 | D156: 0
A157: 1960-05-31 | B157: 12:00:00 | C157: 10.9 | D157: 0
A158: 1960-06-01 | B158: 12:00:00 | C158: 12.8 | D158: 0
A159: 1960-06-02 | B159: 12:00:00 | C159: 14.7 | D159: 0.5
A160: 1960-06-03 | B160: 12:00:00 | C160: 11.7 | D160: 2.8
A161: 1960-06-04 | B161: 12:00:00 | C161: 8.6 | D161: 0
A162: 1960-06-05 | B162: 12:00:00 | C162: 10.8 | D162: 0
A163: 1960-06-06 | B163: 12:00:00 | C163: 15 | D163: 0
A164: 1960-06-07 | B164: 12:00:00 | C164: 11.2 | D164: 0
A165: 1960-06-08 | B165: 12:00:00 | C165: 11.9 | D165: 0
A166: 1960-06-09 | B166: 12:00:00 | C166: 12 | D166: 0
A167: 1960-06-10 | B167: 12:00:00 | C167: 15 | D167: 0
A168: 1960-06-11 | B168: 12:00:00 | C168: 14.8 | D168: 3.3
A169: 1960-06-12 | B169: 12:00:00 | C169: 16.1 | D169: 0
A170: 1960-06-13 | B170: 12:00:00 | C170: 15.6 | D170: 1
A171: 1960-06-14 | B171: 12:00:00 | C171: 11.4 | D171: 14.2
A172: 1960-06-15 | B172: 12:00:00 | C172: 11.4 | D172: 2.8
A173: 1960-06-16 | B173: 12:00:00 | C173: 13.1 | D173: 1.8
A174: 1960-06-17 | B174: 12:00:00 | C174: 11.4 | D174: 0
A175: 1960-06-18 | B175: 12:00:00 | C175: 12.8 | D175: 0
A176: 1960-06-19 | B176: 12:00:00 | C176: 13.9 | D176: 5.1
A177: 1960-06-20 | B177: 12:00:00 | C177: 9.5 | D177: 7.4
A178: 1960-06-21 | B178: 12:00:00 | C178: 10 | D178: 2
A179: 1960-06-22 | B179: 12:00:00 | C179: 13.3 | D179: 1.5
A180: 1960-06-23 | B180: 12:00:00 | C180: 15.6 | D180: 0
A181: 1960-06-24 | B181: 12:00:00 | C181: 17.5 | D181: 7.1
A182: 1960-06-25 | B182: 12:00:00 | C182: 13.3 | D182: 16
A183: 1960-06-26 | B183: 12:00:00 | C183: 13.6 | D183: 1.5
A184: 1960-06-27 | B184: 12:00:00 | C184: 17.2 | D184: 0.3
A185: 1960-06-28 | B185: 12:00:00 | C185: 17 | D185: 18.5
A186: 1960-06-29 | B186: 12:00:00 | C186: 12.2 | D186: 0
A187: 1960-06-30 | B187: 12:00:00 | C187: 14.5 | D187: 0.3
A188: 1960-07-01 | B188: 12:00:00 | C188: 14.2 | D188: 16
A189: 1960-07-02 | B189: 12:00:00 | C189: 14.5 | D189: 0
A190: 1960-07-03 | B190: 12:00:00 | C190: 14.2 | D190: 1
A191: 1960-07-04 | B191: 12:00:00 | C191: 13.9 | D191: 0
A192: 1960-07-05 | B192: 12:00:00 | C192: 17.5 | D192: 0
A193: 1960-07-06 | B193: 12:00:00 | C193: 19.5 | D193: 0
A194: 1960-07-07 | B194: 12:00:00 | C194: 22.5 | D194: 0
A195: 1960-07-08 | B195: 12:00:00 | C195: 16.9 | D195: 0
A196: 1960-07-09 | B196: 12:00:00 | C196: 15.6 | D196: 0
A197: 1960-07-10 | B197: 12:00:00 | C197: 18.7 | D197: 0
A198: 1960-07-11 | B198: 12:00:00 | C198: 14.7 | D198: 0
A199: 1960-07-12 | B199: 12:00:00 | C199: 17.3 | D199: 0
A200: 1960-07-13 | B200: 12:00:00 | C200: 20.9 | D200: 0
A201: 1960-07-14 | B201: 12:00:00 | C201: 22.3 | D201: 0
... 18433 more rows

Sheet CLIST
B1: Daily Time Series - SCs | C1: Index | D1: Unit | E1: Ref. Column | G1: Annual Time Series - SCs | H1: Index | I1: Unit | J1: Ref. Column | L1: Daily Time Series - Ponds | M1: Index | N1: Unit | O1: Ref. Column | Q1: Annual Time Series - Ponds | R1: Index | S1: Unit | T1: Ref. Column
B2: AbsLand:Crop Irrig. Demand (mm) | C2: 1 | D2: mm | E2: P | G2: AbsLand:Evaporation (mm) | H2: 1 | I2: mm | J2: BZ | L2: Catchment Inflow (m3) | M2: 1 | N2: m3 | O2: C | Q2: Demand (m3) | R2: 1 | S2: m3 | T2: N
B3: AbsLand:Evaporation (mm) | C3: 2 | D3: mm | E3: V | G3: AbsLand:Irrig. Demand (mm) | H3: 2 | I3: mm | J3: BW | L3: Demand (m3) | M3: 2 | N3: m3 | O3: O | Q3: Direct Precipitation (m3) | R3: 2 | S3: m3 | T3: H
B4: AbsLand:Net Precip (mm) | C4: 3 | D4: mm | E4: Q | G4: AbsLand:Max. Run-Off (mm) | H4: 3 | I4: mm | J4: CC | L4: Disch to Ponds or Outfall (m3) | M4: 3 | N4: m3 | O4: S | Q4: Discharge (m3) | R4: 3 | S4: m3 | T4: K
B5: AbsLand:Run-Off (mm) | C5: 4 | D5: mm | E5: W | G5: AbsLand:Run-Off (mm) | H5: 4 | I5: mm | J5: CA | L5: Evaporation (m3) | M5: 4 | N5: m3 | O5: Q | Q5: Evaporation (m3) | R5: 4 | S5: m3 | T5: I
B6: AbsLand:Run-On (mm) | C6: 5 | D6: mm | E6: R | G6: AbsLand:Run-On (mm) | H6: 5 | I6: mm | J6: BX | L6: Overflow (m3) | M6: 5 | N6: m3 | O6: N | Q6: Inflow (m3) | R6: 5 | S6: m3 | T6: G
B7: AbsLand:Sch. Irrig. Demand (mm) | C7: 6 | D7: mm | E7: O | G7: AbsLand:Seepage (mm) | H7: 6 | I7: mm | J7: BY | L7: Potential Demand (m3) | M7: 6 | N7: m3 | O7: L | Q7: Make-Up Water (m3) | R7: 6 | S7: m3 | T7: M
B8: AbsLand:Seepage (mm) | C8: 7 | D8: mm | E8: T | G8: BioRT/SW:Evaporation (mm) | H8: 7 | I8: mm | J8: CM | L8: Precipitation (m3) | M8: 7 | N8: m3 | O8: P | Q8: Maximum Level (m) | R8: 7 | S8: m | T8: E
B9: AbsLand:Water Content (mm) | C9: 8 | D9: mm | E9: S | G9: BioRT/SW:Max. Run-Off (mm) | H9: 8 | I9: mm | J9: CQ | L9: Req Makeup Water (m3) | M9: 8 | N9: m3 | O9: M | Q9: Maximum Volume (m3) | R9: 8 | S9: m3 | T9: C
B10: BioRT/SW:Evaporation (mm) | C10: 9 | D10: mm | E10: AN | G10: BioRT/SW:Percolation (mm) | H10: 9 | I10: mm | J10: CL | L10: Seepage (m3) | M10: 9 | N10: m3 | O10: R | Q10: Minimum Level (m) | R10: 9 | S10: m | T10: F
B11: BioRT/SW:Net Precip (mm) | C11: 10 | D11: mm | E11: AG | G11: BioRT/SW:Run-Off (mm) | H11: 10 | I11: mm | J11: CO | L11: Stage (m) | M11: 10 | N11: m | O11: H | Q11: Minimum Volume (m3) | R11: 10 | S11: m3 | T11: D
B12: BioRT/SW:Percolation (mm) | C12: 11 | D12: mm | E12: AM | G12: BioRT/SW:Run-On (mm) | H12: 11 | I12: mm | J12: CK | L12: Surface Area (m2) | M12: 11 | N12: m2 | O12: I | Q12: Overflow (m3) | R12: 11 | S12: m3 | T12: L
B13: BioRT/SW:Run-Off (mm) | C13: 12 | D13: mm | E13: AO | G13: BioRT/SW:Sub-drain (mm) | H13: 12 | I13: mm | J13: CN | L13: Volume (m3) | M13: 12 | N13: m3 | O13: J | Q13: Seepage (m3) | R13: 12 | S13: m3 | T13: J
B14: BioRT/SW:Run-On (mm) | C14: 13 | D14: mm | E14: AH | G14: Gen:Rain (mm) | H14: 13 | I14: mm | J14: BL | L14: Catchment Inflow (m3) | M14: 13 | N14: m3 | O14: AE | Q14: Demand (m3) | R14: 13 | S14: m3 | T14: AA
B15: BioRT/SW:Seepage (mm) | C15: 14 | D15: mm | E15: AJ | G15: GrnRoof:Evaporation (mm) | H15: 14 | I15: mm | J15: CG | L15: Demand (m3) | M15: 14 | N15: m3 | O15: AQ | Q15: Direct Precipitation (m3) | R15: 14 | S15: m3 | T15: U
B16: BioRT/SW:Subdrain Flow (mm) | C16: 15 | D16: mm | E16: AL | G16: GrnRoof:Irrig. Demand (mm) | H16: 15 | I16: mm | J16: CD | L16: Disch to Ponds or Outfall (m3) | M16: 15 | N16: m3 | O16: AU | Q16: Discharge (m3) | R16: 15 | S16: m3 | T16: X
B17: BioRT/SW:Water Content (mm) | C17: 16 | D17: mm | E17: AI | G17: GrnRoof:Max. Run-Off (mm) | H17: 16 | I17: mm | J17: CJ | L17: Evaporation (m3) | M17: 16 | N17: m3 | O17: AS | Q17: Evaporation (m3) | R17: 16 | S17: m3 | T17: V
B18: Disch:Discharge to Pond1 (m3) | C18: 17 | D18: m3 | E18: BD | G18: GrnRoof:Run-Off (mm) | H18: 17 | I18: mm | J18: CH | L18: Overflow (m3) | M18: 17 | N18: m3 | O18: AP | Q18: Inflow (m3) | R18: 17 | S18: m3 | T18: T
B19: Disch:Discharge to Pond2 (m3) | C19: 18 | D19: m3 | E19: BE | G19: GrnRoof:Run-On (mm) | H19: 18 | I19: mm | J19: CE | L19: Potential Demand (m3) | M19: 18 | N19: m3 | O19: AN | Q19: Make-Up Water (m3) | R19: 18 | S19: m3 | T19: Z
B20: Disch:Total Flow (m3) | C20: 19 | D20: m3 | E20: BC | G20: GrnRoof:Seepage (mm) | H20: 19 | I20: mm | J20: CF | L20: Precipitation (m3) | M20: 19 | N20: m3 | O20: AR | Q20: Maximum Level (m) | R20: 19 | S20: m | T20: R
B21: GrnRoof:Crop Irrig. Demand (mm) | C21: 20 | D21: mm | E21: Y | G21: Imperv:Max. Run-Off (mm) | H21: 20 | I21: mm | J21: BO | L21: Req Makeup Water (m3) | M21: 20 | N21: m3 | O21: AO | Q21: Maximum Volume (m3) | R21: 20 | S21: m3 | T21: P
B22: GrnRoof:Evaporation (mm) | C22: 21 | D22: mm | E22: AE | G22: Imperv:Run-Off (mm) | H22: 21 | I22: mm | J22: BM | L22: Seepage (m3) | M22: 21 | N22: m3 | O22: AT | Q22: Minimum Level (m) | R22: 21 | S22: m | T22: S
B23: GrnRoof:Net Precip (mm) | C23: 22 | D23: mm | E23: Z | G23: Landuse Discharge (m3) | H23: 22 | I23: m3 | J23: CY | L23: Stage (m) | M23: 22 | N23: m | O23: AJ | Q23: Minimum Volume (m3) | R23: 22 | S23: m3 | T23: Q
B24: GrnRoof:Run-Off (mm) | C24: 23 | D24: mm | E24: AF | G24: Perv:Evaporation (mm) | H24: 23 | I24: mm | J24: BS | L24: Surface Area (m2) | M24: 23 | N24: m2 | O24: AK | Q24: Overflow (m3) | R24: 23 | S24: m3 | T24: Y
B25: GrnRoof:Run-On (mm) | C25: 24 | D25: mm | E25: AA | G25: Perv:Irrig. Demand (mm) | H25: 24 | I25: mm | J25: BP | L25: Volume (m3) | M25: 24 | N25: m3 | O25: AL | Q25: Seepage (m3) | R25: 24 | S25: m3 | T25: W
B26: GrnRoof:Sch. Irrig. Demand (mm) | C26: 25 | D26: mm | E26: X | G26: Perv:Max. Run-Off (mm) | H26: 25 | I26: mm | J26: BV
B27: GrnRoof:Seepage (mm) | C27: 26 | D27: mm | E27: AC | G27: Perv:Run-Off (mm) | H27: 26 | I27: mm | J27: BU
B28: GrnRoof:Water Content (mm) | C28: 27 | D28: mm | E28: AB | G28: Perv:Run-On (mm) | H28: 27 | I28: mm | J28: BQ
B29: Imperv:Net Precip (mm) | C29: 28 | D29: mm | E29: C | G29: Perv:Seepage (mm) | H29: 28 | I29: mm | J29: BR
B30: Imperv:Run-Off (mm) | C30: 29 | D30: mm | E30: E | G30: Tank:Demand (m3) | H30: 29 | I30: m3 | J30: CU
B31: Imperv:Run-On (mm) | C31: 30 | D31: mm | E31: D | G31: Tank:Inflow (m3) | H31: 30 | I31: m3 | J31: CR
B32: Perv:Crop Irrig. Demand (mm) | C32: 31 | D32: mm | E32: G | G32: Tank:Max. Volume (m3) | H32: 31 | I32: m3 | J32: CS
B33: Perv:Evaporation (mm) | C33: 32 | D33: mm | E33: M | G33: Tank:Min. Volume (m3) | H33: 32 | I33: m3 | J33: CT
B34: Perv:Net Precip (mm) | C34: 33 | D34: mm | E34: H | G34: Tank:Municipal Make-up (m3) | H34: 33 | I34: m3 | J34: CW
B35: Perv:Run-Off (mm) | C35: 34 | D35: mm | E35: N | G35: Tank:Overflow (m3) | H35: 34 | I35: m3 | J35: CV
B36: Perv:Run-On (mm) | C36: 35 | D36: mm | E36: I | G36: Tank:Recharge Volume(m3) | H36: 35 | I36: m3 | J36: CX
B37: Perv:Sch. Irrig. Demand (mm) | C37: 36 | D37: mm | E37: F
B38: Perv:Seepage (mm) | C38: 37 | D38: mm | E38: K
B39: Perv:Water Content (mm) | C39: 38 | D39: mm | E39: J
B40: Tank:Actual Demand (m3) | C40: 39 | D40: m3 | E40: AT
B41: Tank:Actual Mun. Make-up (m3) | C41: 40 | D41: m3 | E41: AZ
B42: Tank:Actual Overflow (m3) | C42: 41 | D42: m3 | E42: BA
B43: Tank:Actual Pond Recharge (m3) | C43: 42 | D43: m3 | E43: AX
B44: Tank:Inflow (m3) | C44: 43 | D44: m3 | E44: AP
B45: Tank:Volume (m3) | C45: 44 | D45: m3 | E45: AV
